Workbook

Sheet Titel
D15: Rekenmodel voor het berekenen van de plankosten
D16: bij kostenverhaal met tijdvak 2024-2
D18: Dit rekenmodel kan worden toegepast bij omgevingsplannen, projectbesluiten en omgevingsvergunningen voor buitenplanse omgevingsplanactiviteiten
D19: waarover na 1 oktober 2024 een besluit wordt genomen. Het rekenmodel bevat de nieuwe, geindexeerde tarieven voor de plankosten
D20: die op 29 december 2023 bekend zijn gemaakt in de Staatscourant.
D21: In het rekenmodel is ook de voorgenomen wijziging van het hoofdstuk kostenverhaal van de Omgevingsregeling verwerkt.

Sheet Invulinstructie
B2: Uitgangspunten plankostenregels kostenverhaal MET tijdvak
C4: De plankosten worden bepaald voor de voorbereiding en ontwikkeling van het gehele kostenverhaalsgebied zoals dat in het Omgevingsplan is aangewezen.
C5: Het bedrag van de plankosten dat met behulp van dit rekenmodel wordt berekend, s het maximum van de te verhalen plankosten in het kostenverhaalsgebied als geheel.
B7: Let op
C8: De plankosten voor het aanleggen van bovenwijkse voorzieningen worden NIET met deze regeling geraamd, maar worden separaat in de kostenverhaalsregels opgenomen (artikel 13.1 Or).
C9: De plankosten voor het (laten) uitvoeren van onderzoeken ten behoeve van het Omgevingsplan worden NIET met deze regeling geraamd maar worden separaat in de kostenverhaalsregels opgenomen (artikel 13.1 Or).
C11: De plankosten die te maken hebben met individuele dienstverlening (lees aanvraag omgevingsvergunning) worden NIET via deze regeling geraamd maar worden via de legesverordening berekend.
C13: Het systeem berekent zelf over hoeveer jaren plankosten die voorafgaand aan de vaststelling van het omgevingsplan zijn gemaakt mogen worden doorberekend (artikel 13.3 Or)
C15: Dit rekenmodel wordt niet gebruikt bij kleine plannen. Dat zijn plannen voor het bouwen, verbouwen of uitbreiden van gebouwen met een klein oppervlakte (artikel 13.5 Or).
B18: Invulinstructie
C19: Om het kostenverhaal te bepalen bij het kostenverhaalsgebied zoals dat in het Omgevingsplan is aangegeven worden de volgende stappen gezet:
B21: vragenlijst | C21: 1e stap | D21: Alle vragen in de vragenlijst beantwoorden. De gemeente heeft een actieve rol.
B23: produktenlijst | C23: 2e stap | D23: Met de button op de produktenlijst moeten de antwoorden uit de vragenlijst opgehaald worden.
B25: resultaat | C25: 3e stap | D25: In het resultaatblad is het bedrag aan plankosten te zien dat onderdeel is van de kostenverhaalsregel in het Omgevingsplan.
B26: bijdrage per eigenaar | C26: 4e stap | D26: Wanneer blijkt dat de eigenaar van de grond bepaalde werkzaamheden zelf heeft uitgevoerd, met goedkeuring van de gemeente is artikel 13.8 van toepassing ('plankosten bij zelfrealisatie').
B27: bijdrage per eigenaar | D27: In dit tabblad is het ook mogelijk de plankosten per eigenaar te bepalen, eventueel met toepassing van artikel 13.8 Or.
C29: Overige
B30: vragenlijst | D30: In de kolommen M tm O in het tabblad vragenlijst kunnen notities worden opgenomen.
B31: hulpblad | D31: In het hulpblad zijn enkele kengetallen weergegeven en is de berekening van de vtu kosten bij sloop, ophogen/voorbelasten en bouw-en woonrijpmaken te zien.
C36: Ministerie van Binnenlandse Zaken en Koninkrijksrelaties

Sheet Vragenlijst
Q6: deze kolommen worden verborgen, en zijn niet opvraagbaar
C7: Plankostenregels bij kostenverhaal MET tijdvak
C9: Vragenlijst
E10: Datum | F10: =TODAY() -> 2024-02-28
E11: Gemeente: | F11: ….
E12: Projectnaam: | F12: ….
E13: Kostenverhaalsgebied: | F13: ….
M15: AANTEKENINGEN
E17: Algemeen
D19: 1 | E19: Wat is de looptijd van het project vanaf het moment van vaststellen van het ruimtelijk besluit ? | I19: jaar | L19: =+D19 -> 1 | M19: aantekeningen | Q19: =+H19 -> 0
E20: De voorbereidingstijd wordt door het systeem zelf berekend | H20: de totale looptijd van het project is dan | J20: =IF(H19>0,+Q20+H19,0) -> 0 | K20: jaar | Q20: =+IF(Produktenlijst!M14<=130%,2,IF(Produktenlijst!M14<150%,3,IF(Produktenlijst!M14>=150%,4,0))) -> 2 | R20: jaar voorbereidingstijd
D23: 2 | E23: Wat is de omvang van het kostenverhaalsgebied ? | I23: m2 | J23: =+H23/10000 -> 0 | K23: ha | L23: =+D23 -> 2 | M23: aantekeningen | Q23: =+H23/10000 -> 0 | R23: ha
E24: Exclusief te handhaven percelen
D26: 3 | E26: Wat voor een kostenverhaalsgebied is het? | L26: =+D26 -> 3 | M26: aantekeningen | Q26: FALSE | R26: FALSE | S26: FALSE | T26: FALSE | U26: FALSE | V26: =+IF(Q26=TRUE,1,IF(R26=TRUE,0.5,IF(S26=TRUE,0.25,0))) -> 0 | W26: IF I
Q29: =+IF(Q26=TRUE,"historisch", "") ->  | R29: =+IF(R26=TRUE,"binnenstedelijk", "") ->  | S29: =+IF(S26=TRUE,"inbreiding", "") ->  | T29: =+IF(T26=TRUE,"uitbreiding", "") ->  | U29: =+IF(U26=TRUE,"uitleg", "") -> 
D30: 4 | E30: Betreft het een herstructurerings/transformatie opgave ? | L30: =+D30 -> 4 | M30: aantekeningen | Q30: FALSE | R30: FALSE | V30: =IF(Q30=TRUE,1.5,0) -> 0 | W30: IF II
Q31: =+IF(Q30=TRUE,"herstructurering/transformatie", "") -> 
D33: 5 | E33: Zijn de volgende onderzoeken nodig voor het kostenverhaalsgebied? | L33: =+D33 -> 5 | M33: aantekeningen | Q33: FALSE | R33: =+IF(Q33=TRUE,"MER", "") ->  | U33: =+IF(Q33=TRUE,0.5,0) -> 0
Q34: FALSE | R34: =+IF(Q34=TRUE," /Nader luchtonderzoek/", "") ->  | U34: =+IF(Q34=TRUE,0.4,0) -> 0 | V34: =+MAX(U33:U36) -> 0 | W34: IF V
Q35: FALSE | R35: =+IF(Q35=TRUE," Aanvullend archeologisch onderzoek ", "") ->  | U35: =+IF(Q35=TRUE,0.3,0) -> 0
U36: =+IF(Q147=TRUE,0.2,0) -> 0 | V36: =IF(U36>0,"bodemsanering","") -> 
D40: 6 | E40: Wat zijn de (maximaal) beoogde kostenverhaalsplichtige bouwactiviteiten ? | F40: woonfunctie | I40: aantal | L40: =+D40 -> 6 | M40: aantekeningen | Q40: =+H40 -> 0 | R40: =IF(Q40>1,1,0) -> 0 | S40: =IF(Q40>0,F40,"") ->  | U40: =+IF(R45>1,0.1,0)*R40 -> 0
F41: (lichte) industriefunctie | I41: m2 uitgeefbaar | Q41: =+H41 -> 0 | R41: =IF(Q41>1,1,0) -> 0 | S41: =IF(Q41>0,F41,"") ->  | U41: =+IF(R45>1,0.1,-0.25)*R41 -> 0
F42: kantoorfunctie/winkelfunctie/sportfunctie | I42: m2 bvo | Q42: =+H42 -> 0 | R42: =IF(Q42>1,1,0) -> 0 | U42: =0.1*R42 -> 0 | V42: =SUM(U40:U44) -> 0 | W42: IF IV
F43: gezondheidszorgfunctie/onderwijsfunctie | I43: m2 bvo | Q43: =+H43 -> 0 | R43: =IF(Q43>1,1,0) -> 0 | U43: =0.25*R43 -> 0
Q45: =SUM(Q41:Q44) -> 0 | R45: =SUM(R40:R44) -> 0
E46: De dichtheid is | F46: =IF(H23>0,+(H40+((H41+H42+H43)/100))/H23*10000,0) -> 0 | H46: won(equivalent) per ha: | I46: =IF(F46<31,"suburbaan",IF(F46>100,"hoogstedelijk","stedelijk")) -> suburbaan | J46: woon-werkmlieu
D49: 7 | E49: Hoeveel m2 openbaar gebied wordt in het kostenverhaalsgebied aangelegd? | F49: =IF(H49>0,H49/H23,0) -> 0 | I49: m2 openbaar gebied (groen, verharding en water) | L49: =+D49 -> 7 | M49: aantekeningen | Q49: =IF(F49>40%,F49/40%,1) -> 1
D50: a | E50: Hoeveel hiervan is m2 verharding? | I50: m2 verharding | J50: =IF(H50>0,H50/H49,0) -> 0
E51: Dus is hiervan m2 groen/water: | H51: =+H49-H50 -> 0 | I51: m2 groen/water | J51: =IF(H51>0,H51/H49,0) -> 0
D54: 8 | E54: Stelt de gemeente bij het Omgevingsplan ook de volgende plannen op? | L54: =+D54 -> 8 | M54: aantekeningen | Q54: FALSE
Q55: FALSE
Q56: FALSE
E60: Omgevingsrecht
D62: 9 | E62: Welk type plan wordt opgesteld? | L62: =+D62 -> 9 | M62: aantekeningen | Q62: FALSE | R62: FALSE | S62: FALSE
D66: 10 | E66: Maakt dit kostenverhaalsbesluit deel uit van een groter Omgevingsplan ? | L66: =+D66 -> 10 | M66: aantekeningen | Q66: FALSE | R66: FALSE
E67: zo ja, wat is de verhouding in oppervlakte ten opzichte van dit Omgevingsplan ? | I67: % van het totale Omgevingsplan | Q67: =+H67 -> 0 | R67: =+J23/Q67 ->  | S67: ha
E68: Het totale Omgevingsplan is dus | F68: =IF(H67>0,J23/Q67,J23) -> 0 | H68: ha groot
E71: Inbreng en verwerving van onroerende zaken
H72: Waardering via Wet WOZ | J72: via onafhankelijke taxatie
D73: 11 | E73: Uit hoeveel kadastrale percelen bestaat het kostenverhaalsgebied en hoeveel daarvan zijn onbebouwd en bebouwd? | I73: totaal | K73: totaal | L73: =+D73 -> 11 | M73: aantekeningen | Q73: =+J73+H73 -> 0
D74: a | E74: aantal onbebouwde percelen | G74: a | I74: stuks | K74: stuks
D75: b | E75: aantal bebouwde percelen | G75: b | I75: stuks | K75: stuks
H76: =IF(SUM(H74:H75)<>H73,"a+b <> totaal","") ->  | I76: =IF(AND(H73>0,J73>0),"klopt dit?","") ->  | J76: =IF(SUM(J74:J75)<>J73,"a+b<> totaal","") -> 
D77: 12 | E77: Hoeveel onroerende zaken is de gemeente van plan daadwerkelijk te verwerven ? | I77: totaal | L77: =+D77 -> 12 | M77: aantekeningen | Q77: =+H77 -> 0
D78: a | E78: waarvan onbebouwde percelen | G78: a | I78: stuks
D79: b | E79: waarvan gebouwen met een woonfunctie | G79: b | I79: stuks
D80: c | E80: waarvan gebouwen met een industriefunctie, winkelfunctie of kantoorfunctie | G80: c | I80: stuks
D81: d | E81: waarvan bijzondere objecten | G81: d | I81: stuks
I82: =IF(SUM(H78:H81)<>H77,"a+b+c+d<> totaal","") -> 
D83: 13 | E83: Van hoeveel huur(pacht)ontbindingen is sprake ? | I83: stuks | L83: =+D83 -> 13 | M83: aantekeningen
D85: 14 | E85: Indien er met een onteigeningsplan wordt gewerkt | L85: =+D85 -> 14 | M85: aantekeningen
D86: a | E86: voor hoeveel onroerende zaken wordt een onteigeningsbeschikking voorbereid? | F86: =IF(H86>H77,"meer dan aantal verwervingen?","") ->  | G86: a | I86: stuks | Q86: =+H86 -> 0
D87: b | E87: in hoeveel van die gevallen komt het tot een bekrachtingsprocedure onteigeningsbeschikking ? | F87: =IF(H87>H86,"meer dan 14a?","") ->  | G87: b | I87: stuks | Q87: =+H87 -> 0 | T87: =IF(H87=1,0.1,(IF(H87>1,0.2,0))) -> 0 | U87: IF III
D90: 15 | E90: Wordt of is een voorkeursrecht gevestigd ? | L90: =+D90 -> 15 | M90: aantekeningen | Q90: FALSE | R90: FALSE | S90: =+IF(Q90=TRUE,1,0) -> 0
E94: Civiele en cultuurtechniek ten behoeve van uitvoering van het omgevingsplan
E97: Slopen
D99: 16 | E99: Is sprake van sloop van onroerende zaken ? | L99: =+D99 -> 16 | M99: aantekeningen | Q99: FALSE | R99: FALSE | T99: =IF(Q99=TRUE,1,0) -> 0
F100: =+IF(R99=TRUE,"ga door naar vraag 17","") -> 
D101: a | E101: Zo ja, hoeveel m3 moet er gesloopt worden ? | I101: m3 | T101: =+H101 -> 0
D103: b | E103: Wat voor een soort te slopen onroerende zaken zijn het? Het gaat hoofdzakelijk om:
E104: Meerdere antwoorden zijn mogelijk | V104: Invloedsfactor | X104: =+AVERAGE(W105:W106) -> 0
I105: % | Q105: FALSE | R105: =+H105/100 -> 0 | V105: =IF(Q105=TRUE,-1,0) -> 0 | W105: =+V105*R105 -> 0
E106: =IF(AND(Q105=FALSE,R105>0),"aanvinken ","") ->  | I106: =IF(AND(Q105=TRUE,R105=0),"% invullen","") ->  | Q106: FALSE | R106: =+H107/100 -> 0 | V106: =IF(Q106=TRUE,0,0) -> 0 | W106: =+V106*R106 -> 0
I107: % | R107: =SUM(R105:R106) -> 0
F108: =IF(AND(Q106=FALSE,R106>0),"aanvinken ","") ->  | I108: =IF(AND(Q99=TRUE,H105+H107<>100)," het totaal is meer of minder dan 100%","") -> 
D109: c | E109: In hoeveel bestekken worden deze m3 gesloopt? | F109: =IF(AND(Q99=TRUE,H109=0),"invullen ","") ->  | I109: =IF(H109>0,H101/H109,"") ->  | J109: =IF(H109>0,"m3 gemiddeld per bestek","") ->  | Q109: =+H109 -> 0
E110: =IF(R111=TRUE,"ga door naar vraag 16f","") -> 
D111: d | E111: Is er sprake van asbest in de te slopen onroerende zaken? | Q111: FALSE | R111: FALSE | T111: =+IF(Q111=TRUE,1,0) -> 0
D112: e | E112: Zo ja, in hoeveel procent van het totaal aantal te slopen m3 is sprake van asbest ? | I112: % | J112: =IF(AND(Q111=FALSE,T112>0),"er is geen sprake van asbest","") ->  | K112: =IF(AND(Q111=TRUE,T112>100%),"meer dan 100%"," ") ->  | T112: =+H112/100 -> 0
H113: =IF(AND(T111=1,T112<=0),"percentage invullen ","") -> 
D114: f | E114: Op welke wijze wordt het slopen aanbesteed ? | H114: procentueel aantal aanbestedingen | V114: IF | X114: =IF(Q99=TRUE,AVERAGE(W115:W119),0) -> 0
E115: Meerdere antwoorden zijn mogelijk | I115: % | Q115: FALSE | R115: =+H115 -> 0 | V115: =IF(Q115=TRUE,0,0) -> 0 | W115: =V115*(R115/R118) -> 
E116: =IF(AND(Q115=FALSE,R115>0),"aanvinken ","") ->  | H116: =IF(AND(Q115=TRUE,R115=0),"percentage invullen","") ->  | Q116: FALSE | R116: =+H117 -> 0
E117: =IF(AND(Q116=FALSE,R116>0),"aanvinken ","") ->  | I117: % | Q117: FALSE | R117: =+H119 -> 0 | V117: =IF(Q116=TRUE,0.25,0) -> 0 | W117: =V117*(R116/R118) -> 
H118: =IF(AND(Q116=TRUE,R116=0),"percentage invullen","") ->  | R118: =SUM(R115:R117) -> 0
I119: % | V119: =IF(Q117=TRUE,1,0) -> 0 | W119: =V119*(R117/R118) -> 
E120: =IF(AND(Q117=FALSE,R117>0),"aanvinken ","") ->  | H120: =IF(AND(Q117=TRUE,R117=0),"percentage invullen","") ->  | I120: =IF(AND(Q99=TRUE,H119+H117+H115<>100),"het totaal is meer of minder dan 100%","") -> 
E122: Ophogen/voorbelasten
E123: =IF(R124=TRUE," ga door naar vraag 18"," ") -> 
D124: 17 | E124: Is sprake van ophoging danwel voorbelasting ? | L124: =+D124 -> 17 | M124: aantekeningen | Q124: FALSE | R124: FALSE | S124: =IF(Q124=TRUE,1,0) -> 0
D125: a | E125: Wordt er integraal of partieel opgehoogd? | Q125: FALSE | R125: FALSE
D128: b | E128: In hoeveel deelplannen/fasen wordt er opgehoogd/voorbelast? | G128: b | I128: deelplan/fase
D129: c | E129: Wat is de gemiddelde te verwachten zettingstijd? | G129: c | I129: jaar
D130: d | E130: Wat is de gemiddelde hoogte van de voorbelasting? | G130: d | I130: m1
E133: Bouw en woonrijpmaken
D135: 18 | E135: Is sprake van bouw-en of woonrijpmaken ? | L135: =+D135 -> 18 | M135: aantekeningen | Q135: FALSE | R135: FALSE | T135: =IF(Q135=TRUE,1,0) -> 0
F137: =IF(R135=TRUE," ga door naar de produktenlijst"," ") -> 
D138: a | E138: Op welke wijze wordt het bouw-en woonrijpmaken aanbesteed ? | H138: procentueel aantal aanbestedingen | W138: IF | Y138: =IF(Q135=FALSE,0,+AVERAGE(X139:X141)) -> 0
E139: Meerdere antwoorden zijn mogelijk | I139: % | Q139: FALSE | R139: =+H139 -> 0 | W139: =IF(Q139=TRUE,0,0) -> 0 | X139: =W139*(R139/R142) -> 
E140: =IF(AND(Q139=FALSE,R139>0),"aanvinken ","") ->  | H140: =IF(AND(Q139=TRUE,R139=0),"percentage invullen ","") ->  | Q140: FALSE | R140: =+H141 -> 0 | W140: =IF(Q140=TRUE,0.25,0) -> 0 | X140: =W140*(R140/R142) -> 
E141: =IF(AND(Q140=FALSE,R140>0),"aanvinken ","") ->  | I141: % | Q141: FALSE | R141: =+H143 -> 0 | W141: =IF(Q141=TRUE,1,0) -> 0 | X141: =W141*(R141/R142) -> 
H142: =IF(AND(Q140=TRUE,R140=0),"percentage invullen ","") ->  | R142: =SUM(R139:R141) -> 0
E143: =IF(AND(Q141=FALSE,R141>0),"aanvinken ","") ->  | I143: %
H144: =IF(AND(Q141=TRUE,R141=0),"percentage invullen ","") -> 
F145: =IF(AND(Q135=TRUE,H143+H141+H139<>100)," het totaal is meer of minder dan 100%","") -> 
D147: b | E147: Is er sprake van bodemsanering ? | I147: =IF(AND(Q147=TRUE,S148>100),"fout"," ") ->  | Q147: FALSE | R147: FALSE | T147: =IF(Q147=TRUE,1,0) -> 0
D148: c | E148: Zo ja, in hoeveel procent van het openbaar gebied is hier sprake van ? | F148: =IF(AND(Q147=TRUE,S148=0),"% aangeven","") ->  | I148: % | K148: =IF(AND(Q147=FALSE,S148>0),"zet vraag 18 b op ja","") ->  | S148: =+H148 -> 0

Sheet Produktenlijst
E6: =+Vragenlijst!C7 -> Plankostenregels bij kostenverhaal MET tijdvak | K6: Invloedsfactoren : | M6: omschrijving: | R6: Tarieven na 1 oktober 2024 excl btw | S6: €€/uur | U6: Tarieven na 1 oktober 2024 excl btw | V6: €€/uur
E7: Produkten/werkzaamheden | K7: I Ligging kostenverhaalsgebied | L7: =+Vragenlijst!V26 -> 0 | M7: =+Hulpblad!F59 ->  | R7: Beleidsafdelingen | S7: 151 | U7: Bestekschrijven/calculeren | V7: 119
K8: II Type opgave | L8: =+Vragenlijst!V30 -> 0 | M8: =+Vragenlijst!Q31 ->  | R8: Communicatie | S8: 132 | U8: Civiel technische ontwerpen | V8: 151
E9: Datum | G9: =+Vragenlijst!F10 -> 2024-02-28 | K9: III Verwervingssituatie | L9: =+Vragenlijst!T87 -> 0 | M9: =+Vragenlijst!Q87 -> 0 | N9: onteigeningsbeschikking(en) | R9: Civiel technisch projectleiden | S9: 151 | U9: Civiel technisch tekenen | V9: 107
E10: Gemeente: | G10: =+Vragenlijst!F11 -> …. | K10: IV Type programma | L10: =+Vragenlijst!V42 -> 0 | M10: =CONCATENATE(Vragenlijst!S40, Vragenlijst!S41, Vragenlijst!S42, Vragenlijst!S43) ->  | R10: Grondzaken | S10: 151 | U10: Directievoeren | V10: 132
E11: Projectnaam: | G11: =+Vragenlijst!F12 -> …. | K11: V Onderzoeken | L11: =+Vragenlijst!V34 -> 0 | M11: =CONCATENATE(Vragenlijst!R33, Vragenlijst!R34) ->  | O11: =CONCATENATE(Vragenlijst!R35, Vragenlijst!V36) ->  | R11: Landmeten/vastgoedinformatie | S11: 119 | U11: Toezichthouden | V11: 107
E12: Kostenverhaalsgebied: | G12: =+Vragenlijst!F13 -> …. | K12: VI Woon-werkmilieu | L12: =+IF(Vragenlijst!I46="suburbaan",0%,IF(Vragenlijst!I46="stedelijk",-100%,-150%)) -> 0 | M12: =+Vragenlijst!I46 -> suburbaan | R12: Omgevingsrecht | S12: 151
R13: Planeconomie | S13: 151
K14: (I tm V) complexiteitsfactor | L14: algemeen | M14: =1+AVERAGE(L7:L11) -> 1 | R14: Projectmanagement | S14: 171
K15: (I,II,V, VI) complexiteitsfactor | L15: stedenbouw | M15: =1+(L7+L8+L11+L12)/4 -> 1 | R15: Projectmanagementassistentie | S15: 119
R16: Stedenbouw | S16: 151
G18: Produkten/werkzaamheden | K18: welke discilines werken aan het produkt? | L18: Aantal | M18: Uren of bedrag | N18: Tarief | O18: complexiteitsfactor ? | R18: Totaal in euro's | S18: =S20+S69 -> 0 | U18: Totaal in uren | V18: =V20+V69 -> 0
B20: tbv macro | F20: 1 | G20: Omgevingsplan, projectbesluit of omgevingsvergunning voor het kostenverhaalsgebied | S20: =SUM(S22:S66) -> 0 | V20: =SUM(V22:V66) -> 0
B22: TRUE | C22: =+IF(D22=TRUE,1,0) -> 0 | D22: FALSE | F22: A | G22: Opstellen en vaststellen gedetailleerd omgevingsplan | S22: =SUM(R23:R28) -> 0 | V22: =SUM(U23:U28) -> 0
H23: opstellen en vaststellen omgevingsplan | K23: Omgevingsrecht jurist incl digitalisering/kaartmateriaal | L23: =+IF(Vragenlijst!Q62=TRUE,100%,0) -> 0 | M23: =+Hulpblad!I165 -> 100 | N23: =+S12 -> 151 | O23: ja | P23: =+IF(O23="ja",$M$14,100%) -> 1 | R23: =P23*N23*M23*L23*D22 -> 0 | U23: =D$22*L23*M23*P23 -> 0
K24: Projectmanagement | L24: 0.075 | M24: =+$M$23*$L$23 -> 0 | N24: =+S14 -> 171 | O24: ja | P24: 1 | R24: =P24*N24*M24*L24*D$22 -> 0 | U24: 0
K25: Stedenbouw | L25: 0.1 | M25: =+$M$23*$L$23 -> 0 | N25: =+S16 -> 151 | O25: ja | P25: 1 | R25: =P25*N25*M25*L25*D$22 -> 0 | U25: 0
K26: Planeconomie | L26: 0.01 | M26: 0 | N26: =+S13 -> 151 | O26: ja | P26: 1 | R26: =P26*N26*M26*L26*D$22 -> 0 | U26: 0
K27: Beleidsafdelingen | L27: 0.1 | M27: 0 | N27: =+S7 -> 151 | O27: ja | P27: 1 | R27: =P27*N27*M27*L27*D$22 -> 0 | U27: 0
K28: Communicatie | L28: 0.05 | M28: 0 | N28: =+S8 -> 132 | O28: ja | P28: 1 | R28: =P28*N28*M28*L28*D$22 -> 0 | U28: 0
S30: =SUM(R31:R32) -> 0 | V30: =SUM(U31:U32) -> 0
H31: opstellen regels kostenverhaal | K31: Grondzaken en planeconomie | L31: =+L23 -> 0 | M31: =+Hulpblad!B185 -> 38 | N31: =+S10 -> 151 | O31: ja | P31: =+IF(O31="ja",$M$14,100%) -> 1 | R31: =P31*N31*M31*L31*D22 -> 0 | U31: =D$22*L31*M31*P31 -> 0
K32: Projectmanagement | L32: 0.1 | M32: =+M31*L31 -> 0 | N32: =+S14 -> 171 | O32: ja | P32: =+IF(O32="ja",$M$14,100%) -> 1 | R32: =P32*N32*M32*L32*D$22 -> 0 | U32: =D$22*L32*M32*P32 -> 0
F35: B | G35: Opstellen en vaststellen projectbesluit of verlenen omgevingsvergunning voor een buitenplanse omgevingsplanactiviteit | S35: =SUM(R36:R41) -> 0 | V35: =SUM(U36:U41) -> 0
H36: Opstellen en vaststellen projectbesluit of verlenen omgevingsvergunning voor een buitenplanse omgevingsplanactiviteit | K36: Omgevingsrecht jurist incl digitalisering/kaartmateriaal | L36: =+IF(Vragenlijst!R62=TRUE,1,0)+IF(Vragenlijst!S62=TRUE,100%,0) -> 0 | M36: =+Hulpblad!B165 -> 60 | N36: =+S12 -> 151 | O36: ja | P36: =+IF(O36="ja",$M$14,100%) -> 1 | R36: =P36*N36*M36*L36*D22 -> 0 | U36: =D$22*L36*M36*P36 -> 0
K37: Projectmanagement | L37: 0.075 | M37: =+M$36*L$36 -> 0 | N37: =+S14 -> 171 | O37: ja | P37: =+IF(O37="ja",$M$14,100%) -> 1 | R37: =P37*N37*M37*L37*D$22 -> 0 | U37: 0
K38: Stedenbouw | L38: 0.1 | M38: =+M$36*L$36 -> 0 | N38: =+S16 -> 151 | O38: ja | P38: 1 | R38: =P38*N38*M38*L38*D$22 -> 0 | U38: 0
K39: Planeconomie | L39: 0.01 | M39: 0 | N39: =+S13 -> 151 | O39: ja | P39: 1 | R39: =P39*N39*M39*L39*D$22 -> 0 | U39: 0
K40: Beleidsafdelingen | L40: 0.1 | M40: 0 | N40: =+S7 -> 151 | O40: ja | P40: 1 | R40: =P40*N40*M40*L40*D$22 -> 0 | U40: 0
K41: Communicatie | L41: 0.05 | M41: 0 | N41: =+S8 -> 132 | O41: ja | P41: 1 | R41: =P41*N41*M41*L41*D$22 -> 0 | U41: 0
S43: =SUM(R44:R45) -> 0 | V43: =SUM(U44:U45) -> 0
H44: opstellen regels kostenverhaal | K44: Grondzaken en planeconomie | L44: =+L36 -> 0 | M44: =+Hulpblad!H185 -> 25 | N44: =+S10 -> 151 | O44: ja | P44: =+IF(O44="ja",$M$14,100%) -> 1 | R44: =P44*N44*M44*L44*D22 -> 0 | U44: =D$22*L44*M44*P44 -> 0
K45: Projectmanagement | L45: 0.1 | M45: =+M44*L44 -> 0 | N45: =+S14 -> 171 | O45: ja | P45: =+IF(O45="ja",$M$14,100%) -> 1 | R45: =P45*N45*M45*L45*D$22 -> 0 | U45: =D$22*L45*M45*P45 -> 0
B49: =+Vragenlijst!Q54 -> FALSE | C49: =+IF(D49=TRUE,1,0) -> 0 | D49: FALSE | F49: 1.2 | G49: Stedenbouwkundig plan | S49: =SUM(R50:R57) -> 0 | V49: =SUM(U50:U57) -> 0
H50: uur per gebouw met een woonfunctie (aantal woningen) | K50: Stedenbouw | L50: =+Vragenlijst!H40 -> 0 | M50: 2.5 | N50: =+S16 -> 151 | O50: CF stedenbouw | P50: =+M15 -> 1 | R50: =P50*N50*M50*L50*C49 -> 0 | U50: =C49*L50*M50*P50 -> 0
H51: uur per 100 m2 grond of 100 m2 bvo met andere kostenverhaalsplichtige bouwactiviteiten dan woningbouw | K51: Stedenbouw | L51: =+Vragenlijst!Q45/100 -> 0 | M51: 0.5 | N51: =+S16 -> 151 | O51: CF stedenbouw | P51: =+M15 -> 1 | R51: =P51*N51*M51*L51*C49 -> 0 | U51: =C49*L51*M51*P51 -> 0
H52: uur bij maatschappelijke functies | K52: Stedenbouw | L52: =+IF(Vragenlijst!Q43>0,1,0) -> 0 | M52: =40 -> 40 | N52: =+S16 -> 151 | O52: CF stedenbouw | P52: =+M15 -> 1 | R52: =P52*N52*M52*L52*C49 -> 0 | U52: =C49*L52*M52*P52 -> 0
K53: Projectmanagement | L53: 0.15 | M53: =+M50*L50+M51*L51+M52*L52 -> 0 | N53: =+S14 -> 171 | O53: CF stedenbouw | P53: =+M15 -> 1 | R53: =P53*N53*M53*L53*C49 -> 0 | U53: =C49*L53*M53*P53 -> 0
K54: Planeconomie | L54: 0.1 | M54: =+M53 -> 0 | N54: =+S13 -> 151 | O54: CF stedenbouw | P54: =+M15 -> 1 | R54: =P54*N54*M54*L54*C49 -> 0 | U54: =C49*L54*M54*P54 -> 0
K55: Communicatie | L55: 0.075 | M55: =+M54 -> 0 | N55: =+S8 -> 132 | O55: CF stedenbouw | P55: =+M15 -> 1 | R55: =P55*N55*M55*L55*C49 -> 0 | U55: =C49*L55*M55*P55 -> 0
K56: Civiele techniek | L56: 0.1 | M56: =+M55 -> 0 | N56: =+S9 -> 151 | O56: CF stedenbouw | P56: =+M15 -> 1 | R56: =P56*N56*M56*L56*C49 -> 0 | U56: =C49*L56*M56*P56 -> 0
K57: Landmeten/vastgoedinformatie | L57: 0.01 | M57: =+M56 -> 0 | N57: =+S11 -> 119 | O57: CF stedenbouw | P57: =+M15 -> 1 | R57: =P57*N57*M57*L57*C49 -> 0 | U57: =C49*L57*M57*P57 -> 0
B59: =+Vragenlijst!Q55 -> FALSE | C59: =+IF(D59=TRUE,1,0) -> 0 | D59: FALSE | F59: 1.3 | G59: Beeldkwaliteitsplan | S59: =SUM(R60:R65) -> 0 | V59: =SUM(U60:U65) -> 0
H60: uur per gebouw met een woonfunctie (aantal woningen) | K60: Stedenbouw | L60: =+Vragenlijst!H40 -> 0 | M60: 1 | N60: =+S16 -> 151 | O60: nee | P60: =+IF(O60="ja",$M$14,100%) -> 1 | R60: =P60*N60*M60*L60*C59 -> 0 | U60: =C59*L60*M60*P60 -> 0
H61: uur per 100 m2 grond of 100 m2 bvo met andere kostenverhaalsplichtige bouwactiviteiten dan woningbouw | K61: Stedenbouw | L61: =+Vragenlijst!Q45/100 -> 0 | M61: 0.25 | N61: =+S16 -> 151 | O61: nee | P61: =+IF(O61="ja",$M$14,100%) -> 1 | R61: =P61*N61*M61*L61*C59 -> 0 | U61: =C59*L61*M61*P61 -> 0
H62: uur bij maatschappelijke functies | K62: Stedenbouw | L62: =+IF(Vragenlijst!Q43>0,1,0) -> 0 | M62: =40 -> 40 | N62: =+S16 -> 151 | O62: nee | P62: =+IF(O62="ja",$M$14,100%) -> 1 | R62: =P62*N62*M62*L62*C59 -> 0 | U62: =C59*L62*M62*P62 -> 0
K63: Projectmanagement | L63: 0.1 | M63: =+M60*L60+M61*L61+M62*L62 -> 0 | N63: =+S14 -> 171 | O63: nee | P63: =+IF(O63="ja",$M$14,100%) -> 1 | R63: =P63*N63*M63*L63*C59 -> 0 | U63: =C59*L63*M63*P63 -> 0
K64: Planeconomie | L64: 0.025 | M64: =+M63 -> 0 | N64: =+S13 -> 151 | O64: nee | P64: 1 | R64: =P64*N64*M64*L64*C59 -> 0 | U64: =C59*L64*M64*P64 -> 0
K65: Landmeten/vastgoedinformatie | L65: 0.01 | M65: =+M64 -> 0 | N65: =+S11 -> 119 | O65: nee | P65: =+IF(O65="ja",$M$14,100%) -> 1 | R65: =P65*N65*M65*L65*C59 -> 0 | U65: =C59*L65*M65*P65 -> 0
G69: Werkzaamheden ten behoeve van het uitvoeren van het omgevingsplan | S69: =SUM(S71:S133) -> 0 | V69: =SUM(V71:V133) -> 0
B71: =+IF(Vragenlijst!Q73=0,FALSE,TRUE) -> FALSE | C71: =+IF(D71=TRUE,1,0) -> 0 | D71: FALSE | F71: 2.1 | G71: Taxatie inbrengwaarde percelen | H71: Via onafhankelijke taxatie | S71: =IF((R72+R73)<(4*S9),((4*S9)+R74+R75+R76)*L74,SUM(R72:R76)) -> 0 | V71: =IF((U72+U73)<4,(4+U74+U75+U76)*L74,SUM(U72:U76)) -> 0
C72: =+L72+L73 -> 0 | H72: uur per onbebouwd perceel | K72: Taxateur | L72: =+Vragenlijst!J74 -> 0 | M72: 1 | N72: =+S10 -> 151 | O72: nee | P72: =+IF(O72="ja",$M$14,100%) -> 1 | R72: =P72*N72*M72*L72*C71 -> 0 | U72: =C$71*L72*M72*P72 -> 0
H73: uur per bebouwd perceel | K73: Taxateur | L73: =+Vragenlijst!J75 -> 0 | M73: 2 | N73: =+S10 -> 151 | O73: nee | P73: =+IF(O73="ja",$M$14,100%) -> 1 | R73: =P73*N73*M73*L73*C71 -> 0 | U73: =C$71*L73*M73*P73 -> 0
H74: ambtelijke begeleiding onderzoek | K74: Planeconomie | L74: =IF(C72>=1,1,0) -> 0 | M74: 16 | N74: =+S13 -> 151 | O74: nee | P74: =+IF(O74="ja",$M$14,100%) -> 1 | R74: =P74*N74*M74*L74*C71 -> 0 | U74: =C$71*L74*M74*P74 -> 0
K75: Projectmanagement | L75: 0.05 | M75: =+M72*L72+M73*L73+M74*L74 -> 0 | N75: =+S14 -> 171 | O75: nee | P75: =+IF(O75="ja",$M$14,100%) -> 1 | R75: =P75*N75*M75*L75*C71 -> 0 | U75: =C71*L75*M75*P75 -> 0
K76: Landmeten/vastgoedinformatie | L76: 0.01 | M76: =+M75 -> 0 | N76: =+S11 -> 119 | O76: nee | P76: =+IF(O76="ja",$M$14,100%) -> 1 | R76: =P76*N76*M76*L76*C71 -> 0 | U76: =C71*L76*M76*P76 -> 0
H78: Via Wet WOZ | S78: =SUM(R79:R82) -> 0 | V78: =SUM(U79:U82) -> 0
H79: uur per onbebouwd perceel | K79: Planeconomie/grondzaken | L79: =+Vragenlijst!H74 -> 0 | M79: 0.25 | N79: =+S13 -> 151 | O79: nee | P79: =+IF(O79="ja",$M$14,100%) -> 1 | R79: =P79*N79*M79*L79*C71 -> 0 | U79: =C$71*L79*M79*P79 -> 0
H80: uur per bebouwd perceel | K80: Planeconomie/grondzaken | L80: =+Vragenlijst!H75 -> 0 | M80: 0.25 | N80: =+S13 -> 151 | O80: nee | P80: =+IF(O80="ja",$M$14,100%) -> 1 | R80: =P80*N80*M80*L80*C71 -> 0 | U80: =C$71*L80*M80*P80 -> 0
K81: Projectmanagement | L81: 0.05 | M81: =M79*L79+M80*L80 -> 0 | N81: =+S14 -> 171 | O81: nee | P81: =+IF(O81="ja",$M$14,100%) -> 1 | R81: =P81*N81*M81*L81*C71 -> 0 | U81: =C$71*L81*M81*P81 -> 0
K82: Landmeten/vastgoedinformatie | L82: 0.01 | M82: =+M81 -> 0 | N82: =+S11 -> 119 | O82: nee | P82: =+IF(O82="ja",$M$14,100%) -> 1 | R82: =P82*N82*M82*L82*C71 -> 0 | U82: =C71*L82*M82*P82 -> 0
S84: =+R85 -> 0 | V84: =+U85+U86 -> 0
H85: Hertaxatie inbrengwaarde (vijfjaarlijks) | L85: =+IF(Vragenlijst!H19<=5,0,(IF(Vragenlijst!H19<=10,1,(IF(Vragenlijst!H19<=15,2,(IF(Vragenlijst!H19<=20,3,(IF(Vragenlijst!H19<=25,4,(IF(Vragenlijst!H19<=30,5,(IF(Vragenlijst!H19<=35,6,(IF(Vragenlijst!H19<=40,7,IF(Vragenlijst!H19<=45,8,(IF(Vragenlijst!H19<=50,9,(IF(Vragenlijst!H19<=55,10,IF(Vragenlijst!H19<=60,11,12))))))))))))))))))))) -> 0 | M85: =+S71+S78 -> 0 | O85: nee | P85: =+IF(O85="ja",$M$14,100%) -> 1 | R85: =M85*L85*C71*P85 -> 0 | U85: =(+V71+V78)*L85 -> 0
B88: =+IF(Vragenlijst!Q77=0,FALSE,TRUE) -> FALSE | C88: =+IF(D88=TRUE,1,0) -> 0 | D88: FALSE | F88: 2.2 | G88: Taxatie en aankoop onroerende zaak | S88: =SUM(R89:R98) -> 0 | V88: =SUM(U89:U98) -> 0
H89: uur per onbebouwde perceel | K89: Grondzaken | L89: =+Vragenlijst!H78 -> 0 | M89: 24 | N89: =+S10 -> 151 | O89: nee | P89: =+IF(O89="ja",$M$14,100%) -> 1 | R89: =P89*N89*M89*L89*C$88 -> 0 | U89: =C$88*L89*M89*P89 -> 0
H90: uur per gebouw met een woonfunctie | K90: Grondzaken | L90: =+Vragenlijst!H79 -> 0 | M90: 48 | N90: =+S10 -> 151 | O90: nee | P90: 1 | R90: 0 | U90: 0
H91: uur per gebouw met een industriefunctie, winkelfunctie of kantoorfunctie | K91: Grondzaken | L91: =IF(Vragenlijst!Q30=TRUE,0,Vragenlijst!H80) -> 0 | M91: 80 | N91: =+S10 -> 151 | O91: nee | P91: 1 | R91: 0 | U91: 0
H92: uur per gebouw met een industriefunctie, winkelfunctie of kantoorfunctie in herstructurering | K92: Grondzaken | L92: =IF(Vragenlijst!Q30=TRUE,Vragenlijst!H80,0) -> 0 | M92: 100 | N92: =+S10 -> 151 | O92: nee | P92: 1 | R92: 0 | U92: 0
H93: uur per byzonder object | K93: Grondzaken | L93: =IF(Vragenlijst!Q30=TRUE,0,Vragenlijst!H81) -> 0 | M93: 80 | N93: =+S10 -> 151 | O93: nee | P93: 1 | R93: 0 | U93: 0
H94: uur per byzonder object in herstructurering | K94: Grondzaken | L94: =IF(Vragenlijst!Q30=TRUE,Vragenlijst!H81,0) -> 0 | M94: 100 | N94: =S10 -> 151 | O94: nee | P94: 1 | R94: 0 | U94: 0
H95: uur per huur/pachtontbinding | K95: Grondzaken | L95: =Vragenlijst!H83 -> 0 | M95: 48 | N95: =S10 -> 151 | O95: nee | P95: =+IF(O95="ja",$M$14,100%) -> 1 | R95: =P95*N95*M95*L95*C$88 -> 0 | U95: =C$88*L95*M95*P95 -> 0
K96: Projectmanagement | L96: 0.1 | M96: =+M91*L91+M92*L92+M89*L89+M90*L90+M93*L93+M94*L94+L95*M95 -> 0 | N96: =+S14 -> 171 | O96: nee | P96: 1 | R96: =P96*N96*M96*L96*C88 -> 0 | U96: =C88*L96*M96*P96 -> 0
K97: Planeconomie | L97: 0.05 | M97: =+M96 -> 0 | N97: =+S13 -> 151 | O97: nee | P97: 1 | R97: =P97*N97*M97*L97*C88 -> 0 | U97: =C88*L97*M97*P97 -> 0
K98: Landmeten/vastgoedinformatie | L98: 0.01 | M98: =+M97 -> 0 | N98: =+S11 -> 119 | O98: nee | P98: =+IF(O98="ja",$M$14,100%) -> 1 | R98: =P98*N98*M98*L98*C88 -> 0 | U98: =C88*L98*M98*P98 -> 0
B100: =+IF(Vragenlijst!Q86=0,FALSE,TRUE) -> FALSE | C100: =+IF(D100=TRUE,1,0) -> 0 | D100: FALSE | F100: 2.3 | G100: Onteigenen van onroerende zaken | S100: =SUM(R101:R106) -> 0 | V100: =SUM(U101:U106) -> 0
H101: uur per procedure van de voorbereiding van een onteigeningsbeschikking | K101: Grondzaken | L101: =+Vragenlijst!H86 -> 0 | M101: 134 | N101: =S10 -> 151 | O101: nee | P101: =+IF(O101="ja",$M$14,100%) -> 1 | R101: =P101*N101*M101*L101*C$100 -> 0 | U101: =C$100*L101*M101*P101 -> 0
H102: uur per bekrachtigingsprocedure onteigeningsbeschikking | K102: Grondzaken | L102: =+Vragenlijst!H87 -> 0 | M102: 50 | N102: =S10 -> 151 | O102: nee | P102: =+IF(O102="ja",$M$14,100%) -> 1 | R102: =P102*N102*M102*L102*C$100 -> 0 | U102: =C$100*L102*M102*P102 -> 0
H103: vast bedrag advocaatkosten per onteigeningsbeschikking | K103: Advocatuur | L103: =+L102 -> 0 | M103: 38532 | O103: nee | P103: =+IF(O103="ja",$M$14,100%) -> 1 | R103: =P103*M103*L103*C$100 -> 0
K104: Projectmanagement | L104: 0.1 | M104: =+L101*M101+M102*L102 -> 0 | N104: =+S14 -> 171 | O104: nee | P104: =+IF(O104="ja",$M$14,100%) -> 1 | R104: =P104*N104*M104*L104*C100 -> 0 | U104: =C100*L104*M104*P104 -> 0
K105: Planeconomie | L105: 0.05 | M105: =+M104 -> 0 | N105: =+S13 -> 151 | O105: nee | P105: 1 | R105: =P105*N105*M105*L105*C100 -> 0 | U105: =C100*L105*M105*P105 -> 0
K106: Landmeten/vastgoedinformatie | L106: 0.01 | M106: =+M105 -> 0 | N106: =+S11 -> 119 | O106: nee | P106: =+IF(O106="ja",$M$14,100%) -> 1 | R106: =P106*N106*M106*L106*C100 -> 0 | U106: =C100*L106*M106*P106 -> 0
B108: =+Vragenlijst!Q90 -> FALSE | C108: =+IF(D108=TRUE,1,0) -> 0 | D108: FALSE | F108: 2.4 | G108: Vestigen voorkeursrecht | S108: =SUM(R109:R112) -> 0 | V108: =SUM(U109:U112) -> 0
H109: uur voor vestiging voorkeursrecht | K109: Grondzaken | L109: =+Vragenlijst!S90 -> 0 | M109: 60 | N109: =+S10 -> 151 | O109: nee | P109: =+IF(O109="ja",$M$14,100%) -> 1 | R109: =P109*N109*M109*L109*C$108 -> 0 | U109: =C$108*L109*M109*P109 -> 0
K110: Projectmanagement | L110: 0.1 | M110: =+L109*M109 -> 0 | N110: =+S14 -> 171 | O110: nee | P110: =+IF(O110="ja",$M$14,100%) -> 1 | R110: =P110*N110*M110*L110*C108 -> 0 | U110: =C108*L110*M110*P110 -> 0
K111: Planeconomie | L111: 0.05 | M111: =+M110 -> 0 | N111: =+S13 -> 151 | O111: nee | P111: 1 | R111: =P111*N111*M111*L111*C108 -> 0 | U111: =C108*L111*M111*P111 -> 0
K112: Landmeten/vastgoedinformatie | L112: 0.01 | M112: =+M111 -> 0 | N112: =+S11 -> 119 | O112: nee | P112: =+IF(O112="ja",$M$14,100%) -> 1 | R112: =P112*N112*M112*L112*C108 -> 0 | U112: =C108*L112*M112*P112 -> 0
B114: =+Vragenlijst!Q56 -> FALSE | C114: =+IF(D114=TRUE,1,0) -> 0 | D114: FALSE | F114: 2.5 | G114: Inrichtingsplan Openbare ruimte | S114: =SUM(R115:R120) -> 0 | V114: =SUM(U115:U120) -> 0
H115: uur per 100 m2 verharding | K115: Stedenbouw, civiele techniek | L115: =+Vragenlijst!H50/100 -> 0 | M115: 1.5 | N115: =+S16 -> 151 | O115: nee | P115: =+IF(O115="ja",$M$14,100%) -> 1 | R115: =P115*N115*M115*L115*C114 -> 0 | U115: =C$114*L115*M115*P115 -> 0
H116: uur per 100 m2 groen/water | K116: Stedenbouw, civiele techniek | L116: =(+Vragenlijst!H49-Vragenlijst!H50)/100 -> 0 | M116: 1 | N116: =+S16 -> 151 | O116: nee | P116: =+IF(O116="ja",$M$14,100%) -> 1 | R116: =P116*N116*M116*L116*C114 -> 0 | U116: =C$114*L116*M116*P116 -> 0
K117: Projectmanagement | L117: 0.05 | M117: =+M115*L115+M116*L116 -> 0 | N117: =+S14 -> 171 | O117: nee | P117: =+IF(O117="ja",$M$14,100%) -> 1 | R117: =P117*N117*M117*L117*C114 -> 0 | U117: =C114*L117*M117*P117 -> 0
K118: Planeconomie | L118: 0.025 | M118: =+M117 -> 0 | N118: =+S13 -> 151 | O118: nee | P118: 1 | R118: =P118*N118*M118*L118*C114 -> 0 | U118: =C114*L118*M118*P118 -> 0
K119: Communicatie | L119: 0.05 | M119: =+M117 -> 0 | N119: =+S8 -> 132 | O119: nee | P119: 1 | R119: =P119*N119*M119*L119*C114 -> 0 | U119: =C114*L119*M119*P119 -> 0
K120: Landmeten/vastgoedinformatie | L120: 0.01 | M120: =+M119 -> 0 | N120: =+S11 -> 119 | O120: nee | P120: =+IF(O120="ja",$M$14,100%) -> 1 | R120: =P120*N120*M120*L120*C114 -> 0 | U120: =C114*L120*M120*P120 -> 0
B122: =+IF(Vragenlijst!T99+Vragenlijst!S124+Vragenlijst!T135>0,TRUE,FALSE) -> FALSE | C122: =+IF(D122=TRUE,1,0) -> 0 | D122: FALSE | F122: 2.6 | G122: Voorbereiding, toezicht en directievoering bij civiel en cultuurtechnische werken | S122: =SUM(R123:R125) -> 0 | V122: =SUM(U123:U125) -> 0
G123: a | H123: slopen | K123: Ingenieursbureau | L123: 1 | M123: =+Hulpblad!G48 -> 0 | N123: 1 | O123: ja | P123: =+M14 -> 1 | R123: =P123*N123*M123*L123*C$122 -> 0 | U123: =+Hulpblad!I48*C122*P123 -> 0
G124: b | H124: ophogen/voorbelasten | K124: Ingenieursbureau | L124: =+Vragenlijst!S124 -> 0 | M124: =+Hulpblad!G158 -> 0 | N124: 1 | O124: nee | P124: =+IF(O124="ja",$M$14,100%) -> 1 | R124: =P124*N124*M124*L124*C$122 -> 0
G125: c | H125: bouw en woonrijpmaken | K125: Ingenieursbureau | L125: 1 | M125: =+Hulpblad!G104 -> 0 | N125: 1 | O125: ja | P125: =+M14 -> 1 | R125: =P125*N125*M125*L125*C$122 -> 0 | U125: =+Hulpblad!I104*C122*P125 -> 0
F128: 2.7 | G128: Algemene en financiele verantwoording en aansturing van het project | S128: =SUM(R129:R131) -> 0 | V128: =SUM(U129:U131) -> 0
B129: TRUE | C129: =+IF(D129=TRUE,1,0) -> 0 | D129: FALSE | G129: inclusief bestuurlijke besluitvorming | H129: a.projectmanagement uur per jaar | K129: Projectmanagement | L129: =+Vragenlijst!J20 -> 0 | M129: =30 -> 30 | N129: =+S14 -> 171 | O129: ja | P129: =+IF(O129="ja",$M$14,100%) -> 1 | R129: =P129*N129*M129*L129*C129 -> 0 | U129: =C$129*L129*M129*P129 -> 0
H130: b. projectassistentie uur per jaar, mits complexiteitsfactor > 130% | K130: Projectassistentie | L130: =+IF(M14>130%,Vragenlijst!J20,0) -> 0 | M130: 100 | N130: =+S15 -> 119 | O130: ja | P130: =+IF(O130="ja",$M$14,100%) -> 1 | R130: =P130*N130*M130*L130*C129 -> 0 | U130: =C$129*L130*M130*P130 -> 0
H131: c. financieel management uur per jaar | K131: Planeconomie | L131: =+Vragenlijst!J20 -> 0 | M131: 64 | N131: =+S13 -> 151 | O131: ja | P131: =+IF(O131="ja",$M$14,100%) -> 1 | R131: =P131*N131*M131*L131*C129 -> 0 | U131: =C$129*L131*M131*P131 -> 0

Sheet Resultaat
C3: =+Vragenlijst!C7 -> Plankostenregels bij kostenverhaal MET tijdvak
C5: Resultaat
D6: Datum | E6: =+Vragenlijst!F10 -> 2024-02-28
D7: Gemeente: | E7: =+Vragenlijst!F11 -> ….
D8: Projectnaam: | E8: =+Vragenlijst!F12 -> ….
D9: Kostenverhaalsgebied: | E9: =+Vragenlijst!F13 -> ….
D10: looptijd in jaren: | E10: =+Vragenlijst!J20 -> 0
D11: Complexiteit van het project: | E11: =+Produktenlijst!M14 -> 1
E13: uren | F13: euro's
D14: =+Produktenlijst!G20 -> Omgevingsplan, projectbesluit of omgevingsvergunning voor het kostenverhaalsgebied | E14: =SUM(E15:E17) -> 0 | F14: =SUM(F15:F17) -> 0
C15: 1.1 | D15: =+Produktenlijst!G22 -> Opstellen en vaststellen gedetailleerd omgevingsplan | E15: =+Produktenlijst!V22+Produktenlijst!V30+Produktenlijst!V35+Produktenlijst!V43 -> 0 | F15: =+Produktenlijst!S22+Produktenlijst!S30+Produktenlijst!S35+Produktenlijst!S43 -> 0 | H15: TRUE
C16: =+Produktenlijst!F49 -> 1.2 | D16: =+Produktenlijst!G49 -> Stedenbouwkundig plan | E16: =+Produktenlijst!V49 -> 0 | F16: =+Produktenlijst!S49 -> 0
C17: =+Produktenlijst!F59 -> 1.3 | D17: =+Produktenlijst!G59 -> Beeldkwaliteitsplan | E17: =+Produktenlijst!V59 -> 0 | F17: =+Produktenlijst!S59 -> 0 | H17: TRUE
H18: TRUE
D19: =+Produktenlijst!G69 -> Werkzaamheden ten behoeve van het uitvoeren van het omgevingsplan | E19: =SUM(E20:E26) -> 0 | F19: =SUM(F20:F26) -> 0
C20: =+Produktenlijst!F71 -> 2.1 | D20: =+Produktenlijst!G71 -> Taxatie inbrengwaarde percelen | E20: =+Produktenlijst!V71+Produktenlijst!V78+Produktenlijst!V84 -> 0 | F20: =+Produktenlijst!S71+Produktenlijst!S78+Produktenlijst!S84 -> 0
C21: =+Produktenlijst!F88 -> 2.2 | D21: =+Produktenlijst!G88 -> Taxatie en aankoop onroerende zaak | E21: =+Produktenlijst!V88 -> 0 | F21: =+Produktenlijst!S88 -> 0
C22: =+Produktenlijst!F100 -> 2.3 | D22: =+Produktenlijst!G100 -> Onteigenen van onroerende zaken | E22: =+Produktenlijst!V100 -> 0 | F22: =+Produktenlijst!S100 -> 0
C23: =+Produktenlijst!F108 -> 2.4 | D23: =+Produktenlijst!G108 -> Vestigen voorkeursrecht | E23: =+Produktenlijst!V108 -> 0 | F23: =+Produktenlijst!S108 -> 0 | H23: TRUE
C24: =+Produktenlijst!F114 -> 2.5 | D24: =+Produktenlijst!G114 -> Inrichtingsplan Openbare ruimte | E24: =+Produktenlijst!V114 -> 0 | F24: =+Produktenlijst!S114 -> 0 | H24: FALSE
C25: =+Produktenlijst!F122 -> 2.6 | D25: =+Produktenlijst!G122 -> Voorbereiding, toezicht en directievoering bij civiel en cultuurtechnische werken | E25: =+Produktenlijst!V122 -> 0 | F25: =+Produktenlijst!S122 -> 0
C26: =+Produktenlijst!F128 -> 2.7 | D26: =+Produktenlijst!G128 -> Algemene en financiele verantwoording en aansturing van het project | E26: =+Produktenlijst!V128 -> 0 | F26: =+Produktenlijst!S128 -> 0 | H26: FALSE
D28: Totaal kostenverhaal | E28: =+E19+E14 -> 0 | F28: =+F19+F14 -> 0
H32: FALSE
E50: =SUM(E48:E49) -> 0

Sheet Bijdrage per eigenaar
C3: =+Vragenlijst!C7 -> Plankostenregels bij kostenverhaal MET tijdvak
C5: De plankostenbijdrage per eigenaar.
C6: Wanneer de eigenaar zelf produkten/activiteiten heeft uitgevoerd heeft de aanvrager van de beschikking
C7: recht op (maximale) aftrek van kosten, mits de gemeente akkoord heeft gegeven op het geleverde produkt (artikel 13.8 Or)
D8: Datum | F8: =+Vragenlijst!F10 -> 2024-02-28
D9: Gemeente: | F9: =+Vragenlijst!F11 -> ….
D10: Projectnaam: | F10: =+Vragenlijst!F12 -> …. | H10: =IF(F109-L109-T109-AB109-AJ109-AR109<0,"fout, er wordt meer verhaald dan is toegestaan","") -> 
D11: Kostenverhaalsgebied: | F11: =+Vragenlijst!F13 -> …. | H11: =IF(F13<>I16+Q16+Y16+AG16+AO16,"het totaal aan opbrengstpotenties in de beschikkingen is niet gelijk aan die de kostenverhaalsgebieden","") -> 
E13: Totale opbrengstpotentie in het kostenverhaalsgebied: | F13: 1
I15: … | J15: naam grondeigenaar | Q15: … | R15: naam grondeigenaar | Y15: … | Z15: naam grondeigenaar | AG15: … | AH15: naam grondeigenaar | AO15: … | AP15: naam grondeigenaar
I16: 1 | J16: opbrengstpotentie beschikking | Q16: 0 | R16: opbrengstpotentie beschikking | Y16: 0 | Z16: opbrengstpotentie beschikking | AG16: 0 | AH16: opbrengstpotentie beschikking | AO16: 0 | AP16: opbrengstpotentie beschikking
D17: Totaal resultaat plankosten | H17: aandeel in de plankosten is; | I17: eigenaar voert onderstaande activiteiten uit: cf art 13.8 Or | K17: vergoeding voor deze activiteiten | L17: te vergoeden voor werkzaamheden gemeente | P17: aandeel in de plankosten is; | Q17: eigenaar voert onderstaande activiteiten uit: cf art 13.8 Or | S17: vergoeding voor deze activiteiten | T17: te vergoeden voor werkzaamheden gemeente | X17: aandeel in de plankosten is; | Y17: eigenaar voert onderstaande activiteiten uit: cf art 13.8 Or | AA17: vergoeding voor deze activiteiten | AB17: te vergoeden voor werkzaamheden gemeente | AF17: aandeel in de plankosten is; | AG17: eigenaar voert onderstaande activiteiten uit: cf art 13.8 Or | AI17: vergoeding voor deze activiteiten | AJ17: te vergoeden voor werkzaamheden gemeente | AN17: aandeel in de plankosten is; | AO17: eigenaar voert onderstaande activiteiten uit: cf art 13.8 Or | AQ17: vergoeding voor deze activiteiten | AR17: te vergoeden voor werkzaamheden gemeente
H18: =I16/F13 -> 1 | P18: =Q16/F13 -> 0 | X18: =Y16/F13 -> 0 | AF18: =AG16/F13 -> 0 | AN18: =AO16/F13 -> 0
F19: euro's | H19: euro's | I19: zelf vergoedingspercentage invoeren | J19: vermindering bedraagt ten hoogste volgens art 13.8 Or: | K19: euro's | L19: euro's | O19: prod. | P19: euro's | Q19: zelf vergoedingspercentage invoeren | R19: vermindering bedraagt ten hoogste volgens art 13.8 Or: | S19: euro's | T19: euro's | W19: prod. | X19: euro's | Y19: zelf vergoedingspercentage invoeren | Z19: vermindering bedraagt ten hoogste volgens art 13.8 Or: | AA19: euro's | AB19: euro's | AE19: prod. | AF19: euro's | AG19: zelf vergoedingspercentage invoeren | AH19: vermindering bedraagt ten hoogste volgens art 13.8 Or: | AI19: euro's | AJ19: euro's | AM19: prod. | AN19: euro's | AO19: zelf vergoedingspercentage invoeren | AP19: vermindering bedraagt ten hoogste volgens art 13.8 Or: | AQ19: euro's | AR19: euro's
D20: =Produktenlijst!G20 -> Omgevingsplan, projectbesluit of omgevingsvergunning voor het kostenverhaalsgebied
C21: 1.1 | D21: Opstellen en procedure gedetailleerd omgevingsplan | F21: =SUM(F22:F27) -> 0 | H21: =SUM(H22:H27) -> 0 | K21: =SUM(K22:K27) -> 0 | L21: =SUM(L22:L27) -> 0 | O21: 1.1 | P21: =SUM(P22:P27) -> 0 | S21: =SUM(S22:S27) -> 0 | T21: =SUM(T22:T27) -> 0 | W21: 1.1 | X21: =SUM(X22:X27) -> 0 | AA21: =SUM(AA22:AA27) -> 0 | AB21: =SUM(AB22:AB27) -> 0 | AE21: 1.1 | AF21: =SUM(AF22:AF27) -> 0 | AI21: =SUM(AI22:AI27) -> 0 | AJ21: =SUM(AJ22:AJ27) -> 0 | AM21: 1.1 | AN21: =SUM(AN22:AN27) -> 0 | AQ21: =SUM(AQ22:AQ27) -> 0 | AR21: =SUM(AR22:AR27) -> 0
D22: =Produktenlijst!H23 -> opstellen en vaststellen omgevingsplan | E22: =Produktenlijst!K23 -> Omgevingsrecht jurist incl digitalisering/kaartmateriaal | F22: =Produktenlijst!R23 -> 0 | H22: =F22*$H$18 -> 0 | I22: 0 | J22: maximaal 60% | K22: =I22*H22 -> 0 | L22: =H22-K22 -> 0 | M22: =IF(I22>60%,"X","") ->  | O22: jur | P22: =F22*$P$18 -> 0 | Q22: 0 | R22: maximaal 60% | S22: =Q22*P22 -> 0 | T22: =P22-S22 -> 0 | U22: =IF(Q22>60%,"X","") ->  | W22: jur | X22: =F22*$X$18 -> 0 | Y22: 0 | Z22: maximaal 60% | AA22: =Y22*X22 -> 0 | AB22: =X22-AA22 -> 0 | AC22: =IF(Y22>60%,"X","") ->  | AE22: jur | AF22: =F22*$AF$18 -> 0 | AG22: 0 | AH22: maximaal 60% | AI22: =AG22*AF22 -> 0 | AJ22: =AF22-AI22 -> 0 | AK22: =IF(AG22>60%,"X","") ->  | AM22: jur | AN22: =F22*$AN$18 -> 0 | AO22: 0 | AP22: maximaal 60% | AQ22: =AO22*AN22 -> 0 | AR22: =AN22-AQ22 -> 0 | AS22: =IF(AO22>60%,"X","") -> 
E23: =Produktenlijst!K24 -> Projectmanagement | F23: =Produktenlijst!R24 -> 0 | H23: 0 | I23: 0 | J23: maximaal 60% | K23: =I23*H23 -> 0 | L23: =H23-K23 -> 0 | O23: pm | P23: 0 | Q23: 0 | R23: maximaal 60% | S23: =Q23*P23 -> 0 | T23: =P23-S23 -> 0 | W23: pm | X23: 0 | Y23: 0 | Z23: maximaal 60% | AA23: =Y23*X23 -> 0 | AB23: =X23-AA23 -> 0 | AE23: pm | AF23: 0 | AG23: 0 | AH23: maximaal 60% | AI23: =AG23*AF23 -> 0 | AJ23: =AF23-AI23 -> 0 | AM23: pm | AN23: 0 | AO23: 0 | AP23: maximaal 60% | AQ23: =AO23*AN23 -> 0 | AR23: =AN23-AQ23 -> 0
E24: =Produktenlijst!K25 -> Stedenbouw | F24: =Produktenlijst!R25 -> 0 | H24: 0 | I24: 0 | J24: maximaal 60% | K24: 0 | L24: 0 | M24: =IF(I24>60%,"X","") ->  | O24: sted | P24: 0 | Q24: 0 | R24: maximaal 60% | S24: 0 | T24: 0 | U24: =IF(Q24>60%,"X","") ->  | W24: sted | X24: 0 | Y24: 0 | Z24: maximaal 60% | AA24: 0 | AB24: 0 | AC24: =IF(Y24>60%,"X","") ->  | AE24: sted | AF24: 0 | AG24: 0 | AH24: maximaal 60% | AI24: 0 | AJ24: 0 | AK24: =IF(AG24>60%,"X","") ->  | AM24: sted | AN24: 0 | AO24: 0 | AP24: maximaal 60% | AQ24: 0 | AR24: 0 | AS24: =IF(AO24>60%,"X","") -> 
E25: =Produktenlijst!K26 -> Planeconomie | F25: =Produktenlijst!R26 -> 0 | H25: 0 | I25: 0 | J25: maximaal 60% | K25: 0 | L25: 0 | M25: =IF(I25>60%,"X","") ->  | O25: pe | P25: 0 | Q25: 0 | R25: maximaal 60% | S25: 0 | T25: 0 | U25: =IF(Q25>60%,"X","") ->  | W25: pe | X25: 0 | Y25: 0 | Z25: maximaal 60% | AA25: 0 | AB25: 0 | AC25: =IF(Y25>60%,"X","") ->  | AE25: pe | AF25: 0 | AG25: 0 | AH25: maximaal 60% | AI25: 0 | AJ25: 0 | AK25: =IF(AG25>60%,"X","") ->  | AM25: pe | AN25: 0 | AO25: 0 | AP25: maximaal 60% | AQ25: 0 | AR25: 0 | AS25: =IF(AO25>60%,"X","") -> 
E26: =Produktenlijst!K27 -> Beleidsafdelingen | F26: =Produktenlijst!R27 -> 0 | H26: 0 | I26: 0 | J26: maximaal 60% | K26: 0 | L26: 0 | O26: bel | P26: 0 | Q26: 0 | R26: maximaal 60% | S26: 0 | T26: 0 | W26: bel | X26: 0 | Y26: 0 | Z26: maximaal 60% | AA26: 0 | AB26: 0 | AE26: bel | AF26: 0 | AG26: 0 | AH26: maximaal 60% | AI26: 0 | AJ26: 0 | AM26: bel | AN26: 0 | AO26: 0 | AP26: maximaal 60% | AQ26: 0 | AR26: 0
E27: =Produktenlijst!K28 -> Communicatie | F27: =Produktenlijst!R28 -> 0 | H27: 0 | I27: 0 | J27: maximaal 60% | K27: 0 | L27: 0 | O27: com | P27: 0 | Q27: 0 | R27: maximaal 60% | S27: 0 | T27: 0 | W27: com | X27: 0 | Y27: 0 | Z27: maximaal 60% | AA27: 0 | AB27: 0 | AE27: com | AF27: 0 | AG27: 0 | AH27: maximaal 60% | AI27: 0 | AJ27: 0 | AM27: com | AN27: 0 | AO27: 0 | AP27: maximaal 60% | AQ27: 0 | AR27: 0
F29: =SUM(F30:F31) -> 0 | H29: =SUM(H30:H31) -> 0 | K29: =SUM(K30:K31) -> 0 | L29: =SUM(L30:L31) -> 0 | P29: =SUM(P30:P31) -> 0 | S29: =SUM(S30:S31) -> 0 | T29: =SUM(T30:T31) -> 0 | X29: =SUM(X30:X31) -> 0 | AA29: =SUM(AA30:AA31) -> 0 | AB29: =SUM(AB30:AB31) -> 0 | AF29: =SUM(AF30:AF31) -> 0 | AI29: =SUM(AI30:AI31) -> 0 | AJ29: =SUM(AJ30:AJ31) -> 0 | AN29: =SUM(AN30:AN31) -> 0 | AQ29: =SUM(AQ30:AQ31) -> 0 | AR29: =SUM(AR30:AR31) -> 0
D30: =Produktenlijst!H31 -> opstellen regels kostenverhaal | E30: =Produktenlijst!K31 -> Grondzaken en planeconomie | F30: =Produktenlijst!R31 -> 0 | H30: =F30*$H$18 -> 0 | I30: 0 | J30: maximaal 60% | K30: 0 | L30: 0 | O30: gz/pe | P30: =F30*$P$18 -> 0 | Q30: 0 | R30: maximaal 60% | S30: =Q30*P30 -> 0 | T30: =P30-S30 -> 0 | U30: =IF(Q30>60%,"X","") ->  | W30: gz/pe | X30: =F30*$X$18 -> 0 | Y30: 0 | Z30: maximaal 60% | AA30: =Y30*X30 -> 0 | AB30: =X30-AA30 -> 0 | AC30: =IF(Y30>60%,"X","") ->  | AE30: gz/pe | AF30: =F30*$AF$18 -> 0 | AG30: 0 | AH30: maximaal 60% | AI30: =AG30*AF30 -> 0 | AJ30: =AF30-AI30 -> 0 | AK30: =IF(AG30>60%,"X","") ->  | AM30: gz/pe | AN30: =F30*$AN$18 -> 0 | AO30: 0 | AP30: maximaal 60% | AQ30: =AO30*AN30 -> 0 | AR30: =AN30-AQ30 -> 0 | AS30: =IF(AO30>60%,"X","") -> 
E31: =Produktenlijst!K32 -> Projectmanagement | F31: =Produktenlijst!R32 -> 0 | H31: =F31*$H$18 -> 0 | I31: 0 | J31: maximaal 60% | K31: 0 | L31: 0 | O31: pm | P31: =F31*$P$18 -> 0 | Q31: 0 | R31: maximaal 60% | S31: 0 | T31: 0 | W31: pm | X31: =F31*$X$18 -> 0 | Y31: 0 | Z31: maximaal 60% | AA31: 0 | AB31: 0 | AE31: pm | AF31: =F31*$AF$18 -> 0 | AG31: 0 | AH31: maximaal 60% | AI31: 0 | AJ31: 0 | AM31: pm | AN31: =F31*$AN$18 -> 0 | AO31: 0 | AP31: maximaal 60% | AQ31: 0 | AR31: 0
D33: =Produktenlijst!G35 -> Opstellen en vaststellen projectbesluit of verlenen omgevingsvergunning voor een buitenplanse omgevingsplanactiviteit | F33: =SUM(F34:F39) -> 0 | H33: =SUM(H34:H39) -> 0 | K33: =SUM(K34:K39) -> 0 | L33: =SUM(L34:L39) -> 0 | P33: =SUM(P34:P39) -> 0 | S33: =SUM(S34:S39) -> 0 | T33: =SUM(T34:T39) -> 0 | X33: =SUM(X34:X39) -> 0 | AA33: =SUM(AA34:AA39) -> 0 | AB33: =SUM(AB34:AB39) -> 0 | AF33: =SUM(AF34:AF39) -> 0 | AI33: =SUM(AI34:AI39) -> 0 | AJ33: =SUM(AJ34:AJ39) -> 0 | AN33: =SUM(AN34:AN39) -> 0 | AQ33: =SUM(AQ34:AQ39) -> 0 | AR33: =SUM(AR34:AR39) -> 0
E34: =Produktenlijst!K36 -> Omgevingsrecht jurist incl digitalisering/kaartmateriaal | F34: =Produktenlijst!R36 -> 0 | H34: =F34*$H$18 -> 0 | I34: 0 | J34: maximaal 60% | K34: =I34*H34 -> 0 | L34: =H34-K34 -> 0 | M34: =IF(I34>60%,"X","") ->  | O34: jur | P34: =F34*$P$18 -> 0 | Q34: 0 | R34: maximaal 60% | S34: =Q34*P34 -> 0 | T34: =P34-S34 -> 0 | U34: =IF(Q34>60%,"X","") ->  | W34: jur | X34: =F34*$X$18 -> 0 | Y34: 0 | Z34: maximaal 60% | AA34: =Y34*X34 -> 0 | AB34: =X34-AA34 -> 0 | AC34: =IF(Y34>60%,"X","") ->  | AE34: jur | AF34: =F34*$AF$18 -> 0 | AG34: 0 | AH34: maximaal 60% | AI34: =AG34*AF34 -> 0 | AJ34: =AF34-AI34 -> 0 | AK34: =IF(AG34>60%,"X","") ->  | AM34: jur | AN34: =F34*$AN$18 -> 0 | AO34: 0 | AP34: maximaal 60% | AQ34: =AO34*AN34 -> 0 | AR34: =AN34-AQ34 -> 0 | AS34: =IF(AO34>60%,"X","") -> 
E35: =Produktenlijst!K37 -> Projectmanagement | F35: =Produktenlijst!R37 -> 0 | H35: 0 | I35: 0 | J35: maximaal 60% | K35: =I35*H35 -> 0 | L35: =H35-K35 -> 0 | O35: pm | P35: 0 | Q35: 0 | R35: maximaal 60% | S35: =Q35*P35 -> 0 | T35: =P35-S35 -> 0 | W35: pm | X35: 0 | Y35: 0 | Z35: maximaal 60% | AA35: =Y35*X35 -> 0 | AB35: =X35-AA35 -> 0 | AE35: pm | AF35: 0 | AG35: 0 | AH35: maximaal 60% | AI35: =AG35*AF35 -> 0 | AJ35: =AF35-AI35 -> 0 | AM35: pm | AN35: 0 | AO35: 0 | AP35: maximaal 60% | AQ35: =AO35*AN35 -> 0 | AR35: =AN35-AQ35 -> 0
E36: =Produktenlijst!K38 -> Stedenbouw | F36: =Produktenlijst!R38 -> 0 | H36: 0 | I36: 0 | J36: maximaal 60% | K36: 0 | L36: 0 | M36: =IF(I36>60%,"X","") ->  | O36: sted | P36: 0 | Q36: 0 | R36: maximaal 60% | S36: 0 | T36: 0 | U36: =IF(Q36>60%,"X","") ->  | W36: sted | X36: 0 | Y36: 0 | Z36: maximaal 60% | AA36: 0 | AB36: 0 | AC36: =IF(Y36>60%,"X","") ->  | AE36: sted | AF36: 0 | AG36: 0 | AH36: maximaal 60% | AI36: 0 | AJ36: 0 | AK36: =IF(AG36>60%,"X","") ->  | AM36: sted | AN36: 0 | AO36: 0 | AP36: maximaal 60% | AQ36: 0 | AR36: 0 | AS36: =IF(AO36>60%,"X","") -> 
E37: =Produktenlijst!K39 -> Planeconomie | F37: =Produktenlijst!R39 -> 0 | H37: 0 | I37: 0 | J37: maximaal 60% | K37: 0 | L37: 0 | M37: =IF(I37>60%,"X","") ->  | O37: pe | P37: 0 | Q37: 0 | R37: maximaal 60% | S37: 0 | T37: 0 | U37: =IF(Q37>60%,"X","") ->  | W37: pe | X37: 0 | Y37: 0 | Z37: maximaal 60% | AA37: 0 | AB37: 0 | AC37: =IF(Y37>60%,"X","") ->  | AE37: pe | AF37: 0 | AG37: 0 | AH37: maximaal 60% | AI37: 0 | AJ37: 0 | AK37: =IF(AG37>60%,"X","") ->  | AM37: pe | AN37: 0 | AO37: 0 | AP37: maximaal 60% | AQ37: 0 | AR37: 0 | AS37: =IF(AO37>60%,"X","") -> 
E38: =Produktenlijst!K40 -> Beleidsafdelingen | F38: =Produktenlijst!R40 -> 0 | H38: 0 | I38: 0 | J38: maximaal 60% | K38: 0 | L38: 0 | O38: bel | P38: 0 | Q38: 0 | R38: maximaal 60% | S38: 0 | T38: 0 | W38: bel | X38: 0 | Y38: 0 | Z38: maximaal 60% | AA38: 0 | AB38: 0 | AE38: bel | AF38: 0 | AG38: 0 | AH38: maximaal 60% | AI38: 0 | AJ38: 0 | AM38: bel | AN38: 0 | AO38: 0 | AP38: maximaal 60% | AQ38: 0 | AR38: 0
E39: =Produktenlijst!K41 -> Communicatie | F39: =Produktenlijst!R41 -> 0 | H39: 0 | I39: 0 | J39: maximaal 60% | K39: 0 | L39: 0 | O39: com | P39: 0 | Q39: 0 | R39: maximaal 60% | S39: 0 | T39: 0 | W39: com | X39: 0 | Y39: 0 | Z39: maximaal 60% | AA39: 0 | AB39: 0 | AE39: com | AF39: 0 | AG39: 0 | AH39: maximaal 60% | AI39: 0 | AJ39: 0 | AM39: com | AN39: 0 | AO39: 0 | AP39: maximaal 60% | AQ39: 0 | AR39: 0
D41: =Produktenlijst!H44 -> opstellen regels kostenverhaal | F41: =SUM(F42:F43) -> 0 | H41: =SUM(H42:H43) -> 0 | K41: =SUM(K42:K43) -> 0 | L41: =SUM(L42:L43) -> 0 | P41: =SUM(P42:P43) -> 0 | S41: =SUM(S42:S43) -> 0 | T41: =SUM(T42:T43) -> 0 | X41: =SUM(X42:X43) -> 0 | AA41: =SUM(AA42:AA43) -> 0 | AB41: =SUM(AB42:AB43) -> 0 | AF41: =SUM(AF42:AF43) -> 0 | AI41: =SUM(AI42:AI43) -> 0 | AJ41: =SUM(AJ42:AJ43) -> 0 | AN41: =SUM(AN42:AN43) -> 0 | AQ41: =SUM(AQ42:AQ43) -> 0 | AR41: =SUM(AR42:AR43) -> 0
E42: =Produktenlijst!K44 -> Grondzaken en planeconomie | F42: =Produktenlijst!R44 -> 0 | H42: =F42*$H$18 -> 0 | I42: 0 | J42: maximaal 60% | K42: =I42*H42 -> 0 | L42: =H42-K42 -> 0 | M42: =IF(I42>60%,"X","") ->  | O42: gz/pe | P42: =F42*$P$18 -> 0 | Q42: 0 | R42: maximaal 60% | S42: =Q42*P42 -> 0 | T42: =P42-S42 -> 0 | U42: =IF(Q42>60%,"X","") ->  | W42: gz/pe | X42: =F42*$X$18 -> 0 | Y42: 0 | Z42: maximaal 60% | AA42: =Y42*X42 -> 0 | AB42: =X42-AA42 -> 0 | AC42: =IF(Y42>60%,"X","") ->  | AE42: gz/pe | AF42: =F42*$AF$18 -> 0 | AG42: 0 | AH42: maximaal 60% | AI42: =AG42*AF42 -> 0 | AJ42: =AF42-AI42 -> 0 | AK42: =IF(AG42>60%,"X","") ->  | AM42: gz/pe | AN42: =F42*$AN$18 -> 0 | AO42: 0 | AP42: maximaal 60% | AQ42: =AO42*AN42 -> 0 | AR42: =AN42-AQ42 -> 0 | AS42: =IF(AO42>60%,"X","") -> 
E43: =Produktenlijst!K45 -> Projectmanagement | F43: =Produktenlijst!R45 -> 0 | H43: =F43*$H$18 -> 0 | I43: 0 | J43: maximaal 60% | K43: 0 | L43: 0 | O43: pm | P43: =F43*$P$18 -> 0 | Q43: 0 | R43: maximaal 60% | S43: 0 | T43: 0 | W43: pm | X43: =F43*$X$18 -> 0 | Y43: 0 | Z43: maximaal 60% | AA43: 0 | AB43: 0 | AE43: pm | AF43: =F43*$AF$18 -> 0 | AG43: 0 | AH43: maximaal 60% | AI43: 0 | AJ43: 0 | AM43: pm | AN43: =F43*$AN$18 -> 0 | AO43: 0 | AP43: maximaal 60% | AQ43: 0 | AR43: 0
C45: 1.2 | D45: =Produktenlijst!G49 -> Stedenbouwkundig plan | F45: =SUM(F46:F51) -> 0 | H45: =SUM(H46:H51) -> 0 | K45: =SUM(K46:K51) -> 0 | L45: =SUM(L46:L51) -> 0 | O45: 1.2 | P45: =SUM(P46:P51) -> 0 | S45: =SUM(S46:S51) -> 0 | T45: =SUM(T46:T51) -> 0 | W45: 1.2 | X45: =SUM(X46:X51) -> 0 | AA45: =SUM(AA46:AA51) -> 0 | AB45: =SUM(AB46:AB51) -> 0 | AE45: 1.2 | AF45: =SUM(AF46:AF51) -> 0 | AI45: =SUM(AI46:AI51) -> 0 | AJ45: =SUM(AJ46:AJ51) -> 0 | AM45: 1.2 | AN45: =SUM(AN46:AN51) -> 0 | AQ45: =SUM(AQ46:AQ51) -> 0 | AR45: =SUM(AR46:AR51) -> 0
E46: =Produktenlijst!K50 -> Stedenbouw | F46: =Produktenlijst!R50+Produktenlijst!R51+Produktenlijst!R52 -> 0 | H46: =F46*$H$18 -> 0 | I46: 0 | J46: maximaal 90% | K46: =I46*H46 -> 0 | L46: =H46-K46 -> 0 | M46: =IF(I46>90%,"X","") ->  | O46: sted | P46: =F46*$P$18 -> 0 | Q46: 0 | R46: maximaal 90% | S46: =Q46*P46 -> 0 | T46: =P46-S46 -> 0 | U46: =IF(Q46>90%,"X","") ->  | W46: sted | X46: =F46*$X$18 -> 0 | Y46: 0 | Z46: maximaal 90% | AA46: =Y46*X46 -> 0 | AB46: =X46-AA46 -> 0 | AC46: =IF(Y46>90%,"X","") ->  | AE46: sted | AF46: =F46*$AF$18 -> 0 | AG46: 0 | AH46: maximaal 90% | AI46: =AG46*AF46 -> 0 | AJ46: =AF46-AI46 -> 0 | AK46: =IF(AG46>90%,"X","") ->  | AM46: sted | AN46: =F46*$AN$18 -> 0 | AO46: 0 | AP46: maximaal 90% | AQ46: =AO46*AN46 -> 0 | AR46: =AN46-AQ46 -> 0 | AS46: =IF(AO46>90%,"X","") -> 
E47: =Produktenlijst!K53 -> Projectmanagement | F47: =Produktenlijst!R53 -> 0 | H47: 0 | I47: 0 | J47: maximaal 90% | K47: =I47*H47 -> 0 | L47: =H47-K47 -> 0 | M47: =IF(I47>90%,"X","") ->  | O47: pm | P47: 0 | Q47: 0 | R47: maximaal 90% | S47: 0 | T47: 0 | U47: =IF(Q47>90%,"X","") ->  | W47: pm | X47: 0 | Y47: 0 | Z47: maximaal 90% | AA47: 0 | AB47: 0 | AC47: =IF(Y47>90%,"X","") ->  | AE47: pm | AF47: 0 | AG47: 0 | AH47: maximaal 90% | AI47: 0 | AJ47: 0 | AK47: =IF(AG47>90%,"X","") ->  | AM47: pm | AN47: 0 | AO47: 0 | AP47: maximaal 90% | AQ47: 0 | AR47: 0 | AS47: =IF(AO47>90%,"X","") -> 
E48: =Produktenlijst!K54 -> Planeconomie | F48: =Produktenlijst!R54 -> 0 | H48: 0 | I48: 0 | J48: maximaal 90% | K48: 0 | L48: 0 | O48: pe | P48: 0 | Q48: 0 | R48: maximaal 90% | S48: 0 | T48: 0 | W48: pe | X48: 0 | Y48: 0 | Z48: maximaal 90% | AA48: 0 | AB48: 0 | AE48: pe | AF48: 0 | AG48: 0 | AH48: maximaal 90% | AI48: 0 | AJ48: 0 | AM48: pe | AN48: 0 | AO48: 0 | AP48: maximaal 90% | AQ48: 0 | AR48: 0
E49: =Produktenlijst!K55 -> Communicatie | F49: =Produktenlijst!R55 -> 0 | H49: 0 | I49: 0 | J49: maximaal 90% | K49: 0 | L49: 0 | O49: com | P49: 0 | Q49: 0 | R49: maximaal 90% | S49: 0 | T49: 0 | W49: com | X49: 0 | Y49: 0 | Z49: maximaal 90% | AA49: 0 | AB49: 0 | AE49: com | AF49: 0 | AG49: 0 | AH49: maximaal 90% | AI49: 0 | AJ49: 0 | AM49: com | AN49: 0 | AO49: 0 | AP49: maximaal 90% | AQ49: 0 | AR49: 0
E50: =Produktenlijst!K56 -> Civiele techniek | F50: =Produktenlijst!R56 -> 0 | H50: 0 | I50: 0 | J50: maximaal 90% | K50: 0 | L50: 0 | O50: civ | P50: 0 | Q50: 0 | R50: maximaal 90% | S50: 0 | T50: 0 | W50: civ | X50: 0 | Y50: 0 | Z50: maximaal 90% | AA50: 0 | AB50: 0 | AE50: civ | AF50: 0 | AG50: 0 | AH50: maximaal 90% | AI50: 0 | AJ50: 0 | AM50: civ | AN50: 0 | AO50: 0 | AP50: maximaal 90% | AQ50: 0 | AR50: 0
E51: =Produktenlijst!K57 -> Landmeten/vastgoedinformatie | F51: =Produktenlijst!R57 -> 0 | H51: 0 | I51: 0 | J51: maximaal 90% | K51: 0 | L51: 0 | O51: vgi | P51: 0 | Q51: 0 | R51: maximaal 90% | S51: 0 | T51: 0 | W51: vgi | X51: 0 | Y51: 0 | Z51: maximaal 90% | AA51: 0 | AB51: 0 | AE51: vgi | AF51: 0 | AG51: 0 | AH51: maximaal 90% | AI51: 0 | AJ51: 0 | AM51: vgi | AN51: 0 | AO51: 0 | AP51: maximaal 90% | AQ51: 0 | AR51: 0
C53: 1.3 | D53: =Produktenlijst!G59 -> Beeldkwaliteitsplan | F53: =SUM(F54:F57) -> 0 | H53: =SUM(H54:H57) -> 0 | K53: =SUM(K54:K57) -> 0 | L53: =SUM(L54:L57) -> 0 | O53: 1.3 | P53: =SUM(P54:P57) -> 0 | S53: =SUM(S54:S57) -> 0 | T53: =SUM(T54:T57) -> 0 | W53: 1.3 | X53: =SUM(X54:X57) -> 0 | AA53: =SUM(AA54:AA57) -> 0 | AB53: =SUM(AB54:AB57) -> 0 | AE53: 1.3 | AF53: =SUM(AF54:AF57) -> 0 | AI53: =SUM(AI54:AI57) -> 0 | AJ53: =SUM(AJ54:AJ57) -> 0 | AM53: 1.3 | AN53: =SUM(AN54:AN57) -> 0 | AQ53: =SUM(AQ54:AQ57) -> 0 | AR53: =SUM(AR54:AR57) -> 0
E54: =Produktenlijst!K60 -> Stedenbouw | F54: =Produktenlijst!R60+Produktenlijst!R61+Produktenlijst!R62 -> 0 | H54: =F54*$H$18 -> 0 | I54: 0 | J54: maximaal 90% | K54: =I54*H54 -> 0 | L54: =H54-K54 -> 0 | M54: =IF(I54>90%,"X","") ->  | O54: sted | P54: =F54*$P$18 -> 0 | Q54: 0 | R54: maximaal 90% | S54: =Q54*P54 -> 0 | T54: =P54-S54 -> 0 | U54: =IF(Q54>90%,"X","") ->  | W54: sted | X54: =F54*$X$18 -> 0 | Y54: 0 | Z54: maximaal 90% | AA54: =Y54*X54 -> 0 | AB54: =X54-AA54 -> 0 | AC54: =IF(Y54>90%,"X","") ->  | AE54: sted | AF54: =F54*$AF$18 -> 0 | AG54: 0 | AH54: maximaal 90% | AI54: =AG54*AF54 -> 0 | AJ54: =AF54-AI54 -> 0 | AK54: =IF(AG54>90%,"X","") ->  | AM54: sted | AN54: =F54*$AN$18 -> 0 | AO54: 0 | AP54: maximaal 90% | AQ54: =AO54*AN54 -> 0 | AR54: =AN54-AQ54 -> 0 | AS54: =IF(AO54>90%,"X","") -> 
E55: =Produktenlijst!K63 -> Projectmanagement | F55: =Produktenlijst!R63 -> 0 | H55: =F55*$H$18 -> 0 | I55: 0 | J55: maximaal 90% | K55: =I55*H55 -> 0 | L55: =H55-K55 -> 0 | M55: =IF(I55>90%,"X","") ->  | O55: pm | P55: =F55*$P$18 -> 0 | Q55: 0 | R55: maximaal 90% | S55: 0 | T55: 0 | W55: pm | X55: =F55*$X$18 -> 0 | Y55: 0 | Z55: maximaal 90% | AA55: 0 | AB55: 0 | AE55: pm | AF55: =F55*$AF$18 -> 0 | AG55: 0 | AH55: maximaal 90% | AI55: 0 | AJ55: 0 | AM55: pm | AN55: =F55*$AN$18 -> 0 | AO55: 0 | AP55: maximaal 90% | AQ55: =AO55*AN55 -> 0 | AR55: 0 | AS55: =IF(AO55>90%,"X","") -> 
E56: =Produktenlijst!K64 -> Planeconomie | F56: =Produktenlijst!R64 -> 0 | H56: =F56*$H$18 -> 0 | I56: 0 | J56: maximaal 90% | K56: 0 | L56: 0 | O56: pe | P56: =F56*$P$18 -> 0 | Q56: 0 | R56: maximaal 90% | S56: 0 | T56: 0 | W56: pe | X56: =F56*$X$18 -> 0 | Y56: 0 | Z56: maximaal 90% | AA56: 0 | AB56: 0 | AE56: pe | AF56: =F56*$AF$18 -> 0 | AG56: 0 | AH56: maximaal 90% | AI56: 0 | AJ56: 0 | AM56: pe | AN56: =F56*$AN$18 -> 0 | AO56: 0 | AP56: maximaal 90% | AQ56: 0 | AR56: 0
E57: =Produktenlijst!K65 -> Landmeten/vastgoedinformatie | F57: =Produktenlijst!R65 -> 0 | H57: =F57*$H$18 -> 0 | I57: 0 | J57: maximaal 90% | K57: 0 | L57: 0 | O57: vgi | P57: =F57*$P$18 -> 0 | Q57: 0 | R57: maximaal 90% | S57: 0 | T57: 0 | W57: vgi | X57: =F57*$X$18 -> 0 | Y57: 0 | Z57: maximaal 90% | AA57: 0 | AB57: 0 | AE57: vgi | AF57: =F57*$AF$18 -> 0 | AG57: 0 | AH57: maximaal 90% | AI57: 0 | AJ57: 0 | AM57: vgi | AN57: =F57*$AN$18 -> 0 | AO57: 0 | AP57: maximaal 90% | AQ57: 0 | AR57: 0
C59: 2.1 | D59: =Produktenlijst!G71 -> Taxatie inbrengwaarde percelen | E59: =Produktenlijst!H71 -> Via onafhankelijke taxatie | F59: =SUM(F60:F63) -> 0 | H59: =SUM(H60:H63) -> 0 | K59: =SUM(K60:K63) -> 0 | L59: =SUM(L60:L63) -> 0 | O59: 2.1 | P59: =SUM(P60:P63) -> 0 | S59: =SUM(S60:S63) -> 0 | T59: =SUM(T60:T63) -> 0 | W59: 2.1 | X59: =SUM(X60:X63) -> 0 | AA59: =SUM(AA60:AA63) -> 0 | AB59: =SUM(AB60:AB63) -> 0 | AE59: 2.1 | AF59: =SUM(AF60:AF63) -> 0 | AI59: =SUM(AI60:AI63) -> 0 | AJ59: =SUM(AJ60:AJ63) -> 0 | AM59: 2.1 | AN59: =SUM(AN60:AN63) -> 0 | AQ59: =SUM(AQ60:AQ63) -> 0 | AR59: =SUM(AR60:AR63) -> 0
E60: =Produktenlijst!K72 -> Taxateur | F60: =Produktenlijst!R72+Produktenlijst!R73 -> 0 | H60: =F60*$H$18 -> 0 | I60: 0 | J60: maximaal 90% | K60: =I60*H60 -> 0 | L60: =H60-K60 -> 0 | M60: =IF(I60>90%,"X","") ->  | O60: tax | P60: =F60*$P$18 -> 0 | Q60: 0 | R60: maximaal 90% | S60: =Q60*P60 -> 0 | T60: =P60-S60 -> 0 | U60: =IF(Q60>90%,"X","") ->  | W60: tax | X60: =F60*$X$18 -> 0 | Y60: 0 | Z60: maximaal 90% | AA60: =Y60*X60 -> 0 | AB60: =X60-AA60 -> 0 | AC60: =IF(Y60>90%,"X","") ->  | AE60: tax | AF60: =F60*$AF$18 -> 0 | AG60: 0 | AH60: maximaal 90% | AI60: =AG60*AF60 -> 0 | AJ60: =AF60-AI60 -> 0 | AK60: =IF(AG60>90%,"X","") ->  | AM60: tax | AN60: =F60*$AN$18 -> 0 | AO60: 0 | AP60: maximaal 90% | AQ60: =AO60*AN60 -> 0 | AR60: =AN60-AQ60 -> 0 | AS60: =IF(AO60>90%,"X","") -> 
E61: =Produktenlijst!K74 -> Planeconomie | F61: =Produktenlijst!R74 -> 0 | H61: =F61*$H$18 -> 0 | I61: 0 | J61: maximaal 90% | K61: =I61*H61 -> 0 | L61: =H61-K61 -> 0 | M61: =IF(I61>90%,"X","") ->  | O61: pe | P61: =F61*$P$18 -> 0 | Q61: 0 | R61: maximaal 90% | S61: 0 | T61: 0 | W61: pe | X61: =F61*$X$18 -> 0 | Y61: 0 | Z61: maximaal 90% | AA61: 0 | AB61: 0 | AE61: pe | AF61: =F61*$AF$18 -> 0 | AG61: 0 | AH61: maximaal 90% | AI61: 0 | AJ61: 0 | AM61: pe | AN61: =F61*$AN$18 -> 0 | AO61: 0 | AP61: maximaal 90% | AQ61: 0 | AR61: 0
E62: =Produktenlijst!K75 -> Projectmanagement | F62: =Produktenlijst!R75 -> 0 | H62: =F62*$H$18 -> 0 | I62: 0 | J62: maximaal 90% | K62: 0 | L62: 0 | O62: pm | P62: =F62*$P$18 -> 0 | Q62: 0 | R62: maximaal 90% | S62: 0 | T62: 0 | W62: pm | X62: =F62*$X$18 -> 0 | Y62: 0 | Z62: maximaal 90% | AA62: 0 | AB62: 0 | AE62: pm | AF62: =F62*$AF$18 -> 0 | AG62: 0 | AH62: maximaal 90% | AI62: 0 | AJ62: 0 | AM62: pm | AN62: =F62*$AN$18 -> 0 | AO62: 0 | AP62: maximaal 90% | AQ62: 0 | AR62: 0
E63: =Produktenlijst!K76 -> Landmeten/vastgoedinformatie | F63: =Produktenlijst!R76 -> 0 | H63: =F63*$H$18 -> 0 | I63: 0 | J63: maximaal 90% | K63: 0 | L63: 0 | O63: vgi | P63: =F63*$P$18 -> 0 | Q63: 0 | R63: maximaal 90% | S63: 0 | T63: 0 | W63: vgi | X63: =F63*$X$18 -> 0 | Y63: 0 | Z63: maximaal 90% | AA63: 0 | AB63: 0 | AE63: vgi | AF63: =F63*$AF$18 -> 0 | AG63: 0 | AH63: maximaal 90% | AI63: 0 | AJ63: 0 | AM63: vgi | AN63: =F63*$AN$18 -> 0 | AO63: 0 | AP63: maximaal 90% | AQ63: 0 | AR63: 0
E65: =Produktenlijst!H78 -> Via Wet WOZ | F65: =SUM(F66:F68) -> 0 | H65: =SUM(H66:H68) -> 0 | K65: =SUM(K66:K68) -> 0 | L65: =SUM(L66:L68) -> 0 | P65: =SUM(P66:P68) -> 0 | S65: =SUM(S66:S68) -> 0 | T65: =SUM(T66:T68) -> 0 | X65: =SUM(X66:X68) -> 0 | AA65: =SUM(AA66:AA68) -> 0 | AB65: =SUM(AB66:AB68) -> 0 | AF65: =SUM(AF66:AF68) -> 0 | AI65: =SUM(AI66:AI68) -> 0 | AJ65: =SUM(AJ66:AJ68) -> 0 | AN65: =SUM(AN66:AN68) -> 0 | AQ65: =SUM(AQ66:AQ68) -> 0 | AR65: =SUM(AR66:AR68) -> 0
E66: =Produktenlijst!K79 -> Planeconomie/grondzaken | F66: =Produktenlijst!R79+Produktenlijst!R80 -> 0 | H66: =F66*$H$18 -> 0 | I66: 0 | J66: maximaal 90% | K66: =I66*H66 -> 0 | L66: =H66-K66 -> 0 | M66: =IF(I66>90%,"X","") ->  | O66: pe/gz | P66: =F66*$P$18 -> 0 | Q66: 0 | R66: maximaal 90% | S66: =Q66*P66 -> 0 | T66: =P66-S66 -> 0 | U66: =IF(Q66>90%,"X","") ->  | W66: pe/gz | X66: =F66*$X$18 -> 0 | Y66: 0 | Z66: maximaal 90% | AA66: =Y66*X66 -> 0 | AB66: =X66-AA66 -> 0 | AC66: =IF(Y66>90%,"X","") ->  | AE66: pe/gz | AF66: =F66*$AF$18 -> 0 | AG66: 0 | AH66: maximaal 90% | AI66: =AG66*AF66 -> 0 | AJ66: =AF66-AI66 -> 0 | AK66: =IF(AG66>90%,"X","") ->  | AM66: pe/gz | AN66: =F66*$AN$18 -> 0 | AO66: 0 | AP66: maximaal 90% | AQ66: =AO66*AN66 -> 0 | AR66: =AN66-AQ66 -> 0 | AS66: =IF(AO66>90%,"X","") -> 
E67: =Produktenlijst!K81 -> Projectmanagement | F67: =Produktenlijst!R81 -> 0 | H67: =F67*$H$18 -> 0 | I67: 0 | J67: maximaal 90% | K67: =I67*H67 -> 0 | L67: =H67-K67 -> 0 | M67: =IF(I67>90%,"X","") ->  | O67: pm | P67: =F67*$P$18 -> 0 | Q67: 0 | R67: maximaal 90% | S67: 0 | T67: 0 | W67: pm | X67: =F67*$X$18 -> 0 | Y67: 0 | Z67: maximaal 90% | AA67: 0 | AB67: 0 | AE67: pm | AF67: =F67*$AF$18 -> 0 | AG67: 0 | AH67: maximaal 90% | AI67: 0 | AJ67: 0 | AM67: pm | AN67: =F67*$AN$18 -> 0 | AO67: 0 | AP67: maximaal 90% | AQ67: 0 | AR67: 0
E68: =Produktenlijst!K82 -> Landmeten/vastgoedinformatie | F68: =Produktenlijst!R82 -> 0 | H68: =F68*$H$18 -> 0 | I68: 0 | J68: maximaal 90% | K68: 0 | L68: 0 | O68: vgi | P68: =F68*$P$18 -> 0 | Q68: 0 | R68: maximaal 90% | S68: 0 | T68: 0 | W68: vgi | X68: =F68*$X$18 -> 0 | Y68: 0 | Z68: maximaal 90% | AA68: 0 | AB68: 0 | AE68: vgi | AF68: =F68*$AF$18 -> 0 | AG68: 0 | AH68: maximaal 90% | AI68: 0 | AJ68: 0 | AM68: vgi | AN68: =F68*$AN$18 -> 0 | AO68: 0 | AP68: maximaal 90% | AQ68: 0 | AR68: 0
E70: =Produktenlijst!H85 -> Hertaxatie inbrengwaarde (vijfjaarlijks) | F70: =Produktenlijst!R85 -> 0 | H70: =F70*$H$18 -> 0 | I70: 0 | J70: maximaal 90% | K70: 0 | L70: 0 | P70: =F70*$P$18 -> 0 | Q70: 0 | R70: maximaal 90% | S70: =Q70*P70 -> 0 | T70: =P70-S70 -> 0 | U70: =IF(Q70>90%,"X","") ->  | X70: =F70*$X$18 -> 0 | Y70: 0 | Z70: maximaal 90% | AA70: =Y70*X70 -> 0 | AB70: =X70-AA70 -> 0 | AC70: =IF(Y70>90%,"X","") ->  | AF70: =F70*$AF$18 -> 0 | AG70: 0 | AH70: maximaal 90% | AI70: =AG70*AF70 -> 0 | AJ70: =AF70-AI70 -> 0 | AK70: =IF(AG70>90%,"X","") ->  | AN70: =F70*$AN$18 -> 0 | AO70: 0 | AP70: maximaal 90% | AQ70: =AO70*AN70 -> 0 | AR70: =AN70-AQ70 -> 0 | AS70: =IF(AO70>90%,"X","") -> 
C72: 2.2 | D72: =Produktenlijst!G88 -> Taxatie en aankoop onroerende zaak | F72: =SUM(F73:F76) -> 0 | H72: =SUM(H73:H76) -> 0 | K72: =SUM(K73:K76) -> 0 | L72: =SUM(L73:L76) -> 0 | O72: 2.2 | P72: =SUM(P73:P76) -> 0 | S72: =SUM(S73:S76) -> 0 | T72: =SUM(T73:T76) -> 0 | W72: 2.2 | X72: =SUM(X73:X76) -> 0 | AA72: =SUM(AA73:AA76) -> 0 | AB72: =SUM(AB73:AB76) -> 0 | AE72: 2.2 | AF72: =SUM(AF73:AF76) -> 0 | AI72: =SUM(AI73:AI76) -> 0 | AJ72: =SUM(AJ73:AJ76) -> 0 | AM72: 2.2 | AN72: =SUM(AN73:AN76) -> 0 | AQ72: =SUM(AQ73:AQ76) -> 0 | AR72: =SUM(AR73:AR76) -> 0
E73: =Produktenlijst!K89 -> Grondzaken | F73: =Produktenlijst!R89+Produktenlijst!R90+Produktenlijst!R91+Produktenlijst!R92+Produktenlijst!R93+Produktenlijst!R94+Produktenlijst!R95 -> 0 | H73: =F73*$H$18 -> 0 | I73: 0 | J73: maximaal 90% | K73: =I73*H73 -> 0 | L73: =H73-K73 -> 0 | M73: =IF(I73>90%,"X","") ->  | O73: gz | P73: =F73*$P$18 -> 0 | Q73: 0 | R73: maximaal 90% | S73: =Q73*P73 -> 0 | T73: =P73-S73 -> 0 | U73: =IF(Q73>90%,"X","") ->  | W73: gz | X73: =F73*$X$18 -> 0 | Y73: 0 | Z73: maximaal 90% | AA73: =Y73*X73 -> 0 | AB73: =X73-AA73 -> 0 | AC73: =IF(Y73>90%,"X","") ->  | AE73: gz | AF73: =F73*$AF$18 -> 0 | AG73: 0 | AH73: maximaal 90% | AI73: =AG73*AF73 -> 0 | AJ73: =AF73-AI73 -> 0 | AK73: =IF(AG73>90%,"X","") ->  | AM73: gz | AN73: =F73*$AN$18 -> 0 | AO73: 0 | AP73: maximaal 90% | AQ73: =AO73*AN73 -> 0 | AR73: =AN73-AQ73 -> 0 | AS73: =IF(AO73>90%,"X","") -> 
E74: =Produktenlijst!K96 -> Projectmanagement | F74: =Produktenlijst!R96 -> 0 | H74: =F74*$H$18 -> 0 | I74: 0 | J74: maximaal 90% | K74: =I74*H74 -> 0 | L74: =H74-K74 -> 0 | M74: =IF(I74>90%,"X","") ->  | O74: pm | P74: =F74*$P$18 -> 0 | Q74: 0 | R74: maximaal 90% | S74: 0 | T74: 0 | W74: pm | X74: =F74*$X$18 -> 0 | Y74: 0 | Z74: maximaal 90% | AA74: 0 | AB74: 0 | AE74: pm | AF74: =F74*$AF$18 -> 0 | AG74: 0 | AH74: maximaal 90% | AI74: 0 | AJ74: 0 | AM74: pm | AN74: =F74*$AN$18 -> 0 | AO74: 0 | AP74: maximaal 90% | AQ74: 0 | AR74: 0
E75: =Produktenlijst!K97 -> Planeconomie | F75: =Produktenlijst!R97 -> 0 | H75: =F75*$H$18 -> 0 | I75: 0 | J75: maximaal 90% | K75: 0 | L75: 0 | O75: pe | P75: =F75*$P$18 -> 0 | Q75: 0 | R75: maximaal 90% | S75: 0 | T75: 0 | W75: pe | X75: =F75*$X$18 -> 0 | Y75: 0 | Z75: maximaal 90% | AA75: 0 | AB75: 0 | AE75: pe | AF75: =F75*$AF$18 -> 0 | AG75: 0 | AH75: maximaal 90% | AI75: 0 | AJ75: 0 | AM75: pe | AN75: =F75*$AN$18 -> 0 | AO75: 0 | AP75: maximaal 90% | AQ75: 0 | AR75: 0
E76: =Produktenlijst!K98 -> Landmeten/vastgoedinformatie | F76: =Produktenlijst!R98 -> 0 | H76: =F76*$H$18 -> 0 | I76: 0 | J76: maximaal 90% | K76: 0 | L76: 0 | O76: vgi | P76: =F76*$P$18 -> 0 | Q76: 0 | R76: maximaal 90% | S76: 0 | T76: 0 | W76: vgi | X76: =F76*$X$18 -> 0 | Y76: 0 | Z76: maximaal 90% | AA76: 0 | AB76: 0 | AE76: vgi | AF76: =F76*$AF$18 -> 0 | AG76: 0 | AH76: maximaal 90% | AI76: 0 | AJ76: 0 | AM76: vgi | AN76: =F76*$AN$18 -> 0 | AO76: 0 | AP76: maximaal 90% | AQ76: 0 | AR76: 0
C78: 2.3 | D78: =Produktenlijst!G100 -> Onteigenen van onroerende zaken | F78: =SUM(F79:F83) -> 0 | H78: =SUM(H79:H83) -> 0 | K78: =SUM(K79:K83) -> 0 | L78: =SUM(L79:L83) -> 0 | O78: 2.3 | P78: =SUM(P79:P83) -> 0 | S78: =SUM(S79:S83) -> 0 | T78: =SUM(T79:T83) -> 0 | W78: 2.3 | X78: =SUM(X79:X83) -> 0 | AA78: =SUM(AA79:AA83) -> 0 | AB78: =SUM(AB79:AB83) -> 0 | AE78: 2.3 | AF78: =SUM(AF79:AF83) -> 0 | AI78: =SUM(AI79:AI83) -> 0 | AJ78: =SUM(AJ79:AJ83) -> 0 | AM78: 2.3 | AN78: =SUM(AN79:AN83) -> 0 | AQ78: =SUM(AQ79:AQ83) -> 0 | AR78: =SUM(AR79:AR83) -> 0
E79: =Produktenlijst!K101 -> Grondzaken | F79: =Produktenlijst!R101+Produktenlijst!R102 -> 0 | H79: =F79*$H$18 -> 0 | I79: 0 | J79: maximaal 90% | K79: =I79*H79 -> 0 | L79: =H79-K79 -> 0 | M79: =IF(I79>90%,"X","") ->  | O79: gz | P79: =F79*$P$18 -> 0 | Q79: 0 | R79: maximaal 90% | S79: =Q79*P79 -> 0 | T79: =P79-S79 -> 0 | U79: =IF(Q79>90%,"X","") ->  | W79: gz | X79: =F79*$X$18 -> 0 | Y79: 0 | Z79: maximaal 90% | AA79: =Y79*X79 -> 0 | AB79: =X79-AA79 -> 0 | AC79: =IF(Y79>90%,"X","") ->  | AE79: gz | AF79: =F79*$AF$18 -> 0 | AG79: 0 | AH79: maximaal 90% | AI79: =AG79*AF79 -> 0 | AJ79: =AF79-AI79 -> 0 | AK79: =IF(AG79>90%,"X","") ->  | AM79: gz | AN79: =F79*$AN$18 -> 0 | AO79: 0 | AP79: maximaal 90% | AQ79: =AO79*AN79 -> 0 | AR79: =AN79-AQ79 -> 0 | AS79: =IF(AO79>90%,"X","") -> 
E80: =Produktenlijst!K103 -> Advocatuur | F80: =Produktenlijst!R103 -> 0 | H80: =F80*$H$18 -> 0 | I80: 0 | J80: maximaal 90% | K80: =I80*H80 -> 0 | L80: =H80-K80 -> 0 | M80: =IF(I80>90%,"X","") ->  | O80: adv | P80: =F80*$P$18 -> 0 | Q80: 0 | R80: maximaal 90% | S80: 0 | T80: 0 | W80: adv | X80: =F80*$X$18 -> 0 | Y80: 0 | Z80: maximaal 90% | AA80: 0 | AB80: 0 | AE80: adv | AF80: =F80*$AF$18 -> 0 | AG80: 0 | AH80: maximaal 90% | AI80: 0 | AJ80: 0 | AM80: adv | AN80: =F80*$AN$18 -> 0 | AO80: 0 | AP80: maximaal 90% | AQ80: 0 | AR80: 0
E81: =Produktenlijst!K104 -> Projectmanagement | F81: =Produktenlijst!R104 -> 0 | H81: =F81*$H$18 -> 0 | I81: 0 | J81: maximaal 90% | K81: 0 | L81: 0 | O81: pm | P81: =F81*$P$18 -> 0 | Q81: 0 | R81: maximaal 90% | S81: 0 | T81: 0 | W81: pm | X81: =F81*$X$18 -> 0 | Y81: 0 | Z81: maximaal 90% | AA81: 0 | AB81: 0 | AE81: pm | AF81: =F81*$AF$18 -> 0 | AG81: 0 | AH81: maximaal 90% | AI81: 0 | AJ81: 0 | AM81: pm | AN81: =F81*$AN$18 -> 0 | AO81: 0 | AP81: maximaal 90% | AQ81: 0 | AR81: 0
E82: =Produktenlijst!K105 -> Planeconomie | F82: =Produktenlijst!R105 -> 0 | H82: =F82*$H$18 -> 0 | I82: 0 | J82: maximaal 90% | K82: 0 | L82: 0 | O82: pe | P82: =F82*$P$18 -> 0 | Q82: 0 | R82: maximaal 90% | S82: 0 | T82: 0 | W82: pe | X82: =F82*$X$18 -> 0 | Y82: 0 | Z82: maximaal 90% | AA82: 0 | AB82: 0 | AE82: pe | AF82: =F82*$AF$18 -> 0 | AG82: 0 | AH82: maximaal 90% | AI82: 0 | AJ82: 0 | AM82: pe | AN82: =F82*$AN$18 -> 0 | AO82: 0 | AP82: maximaal 90% | AQ82: 0 | AR82: 0
E83: =Produktenlijst!K106 -> Landmeten/vastgoedinformatie | F83: =Produktenlijst!R106 -> 0 | H83: =F83*$H$18 -> 0 | I83: 0 | J83: maximaal 90% | K83: 0 | L83: 0 | O83: vgi | P83: =F83*$P$18 -> 0 | Q83: 0 | R83: maximaal 90% | S83: 0 | T83: 0 | W83: vgi | X83: =F83*$X$18 -> 0 | Y83: 0 | Z83: maximaal 90% | AA83: 0 | AB83: 0 | AE83: vgi | AF83: =F83*$AF$18 -> 0 | AG83: 0 | AH83: maximaal 90% | AI83: 0 | AJ83: 0 | AM83: vgi | AN83: =F83*$AN$18 -> 0 | AO83: 0 | AP83: maximaal 90% | AQ83: 0 | AR83: 0
C85: 2.4 | D85: =Produktenlijst!G108 -> Vestigen voorkeursrecht | F85: =SUM(F86:F89) -> 0 | H85: =SUM(H86:H89) -> 0 | K85: =SUM(K86:K89) -> 0 | L85: =SUM(L86:L89) -> 0 | O85: 2.4 | P85: =SUM(P86:P89) -> 0 | S85: =SUM(S86:S89) -> 0 | T85: =SUM(T86:T89) -> 0 | W85: 2.4 | X85: =SUM(X86:X89) -> 0 | AA85: =SUM(AA86:AA89) -> 0 | AB85: =SUM(AB86:AB89) -> 0 | AE85: 2.4 | AF85: =SUM(AF86:AF89) -> 0 | AI85: =SUM(AI86:AI89) -> 0 | AJ85: =SUM(AJ86:AJ89) -> 0 | AM85: 2.4 | AN85: =SUM(AN86:AN89) -> 0 | AQ85: =SUM(AQ86:AQ89) -> 0 | AR85: =SUM(AR86:AR89) -> 0
E86: =Produktenlijst!K109 -> Grondzaken | F86: =Produktenlijst!R109 -> 0 | H86: =F86*$H$18 -> 0 | I86: 0 | J86: maximaal 90% | K86: =I86*H86 -> 0 | L86: =H86-K86 -> 0 | M86: =IF(I86>90%,"X","") ->  | O86: gz | P86: =F86*$P$18 -> 0 | Q86: 0 | R86: maximaal 90% | S86: =Q86*P86 -> 0 | T86: =P86-S86 -> 0 | U86: =IF(Q86>90%,"X","") ->  | W86: gz | X86: =F86*$X$18 -> 0 | Y86: 0 | Z86: maximaal 90% | AA86: =Y86*X86 -> 0 | AB86: =X86-AA86 -> 0 | AC86: =IF(Y86>90%,"X","") ->  | AE86: gz | AF86: =F86*$AF$18 -> 0 | AG86: 0 | AH86: maximaal 90% | AI86: =AG86*AF86 -> 0 | AJ86: =AF86-AI86 -> 0 | AK86: =IF(AG86>90%,"X","") ->  | AM86: gz | AN86: =F86*$AN$18 -> 0 | AO86: 0 | AP86: maximaal 90% | AQ86: =AO86*AN86 -> 0 | AR86: =AN86-AQ86 -> 0 | AS86: =IF(AO86>90%,"X","") -> 
E87: =Produktenlijst!K110 -> Projectmanagement | F87: =Produktenlijst!R110 -> 0 | H87: =F87*$H$18 -> 0 | I87: 0 | J87: maximaal 90% | K87: =I87*H87 -> 0 | L87: =H87-K87 -> 0 | M87: =IF(I87>90%,"X","") ->  | O87: pm | P87: =F87*$P$18 -> 0 | Q87: 0 | R87: maximaal 90% | S87: 0 | T87: 0 | W87: pm | X87: =F87*$X$18 -> 0 | Y87: 0 | Z87: maximaal 90% | AA87: 0 | AB87: 0 | AE87: pm | AF87: =F87*$AF$18 -> 0 | AG87: 0 | AH87: maximaal 90% | AI87: 0 | AJ87: 0 | AM87: pm | AN87: =F87*$AN$18 -> 0 | AO87: 0 | AP87: maximaal 90% | AQ87: 0 | AR87: 0
E88: =Produktenlijst!K111 -> Planeconomie | F88: =Produktenlijst!R111 -> 0 | H88: =F88*$H$18 -> 0 | I88: 0 | J88: maximaal 90% | K88: 0 | L88: 0 | O88: pe | P88: =F88*$P$18 -> 0 | Q88: 0 | R88: maximaal 90% | S88: 0 | T88: 0 | W88: pe | X88: =F88*$X$18 -> 0 | Y88: 0 | Z88: maximaal 90% | AA88: 0 | AB88: 0 | AE88: pe | AF88: =F88*$AF$18 -> 0 | AG88: 0 | AH88: maximaal 90% | AI88: 0 | AJ88: 0 | AM88: pe | AN88: =F88*$AN$18 -> 0 | AO88: 0 | AP88: maximaal 90% | AQ88: 0 | AR88: 0
E89: =Produktenlijst!K112 -> Landmeten/vastgoedinformatie | F89: =Produktenlijst!R112 -> 0 | H89: =F89*$H$18 -> 0 | I89: 0 | J89: maximaal 90% | K89: 0 | L89: 0 | O89: vgi | P89: =F89*$P$18 -> 0 | Q89: 0 | R89: maximaal 90% | S89: 0 | T89: 0 | W89: vgi | X89: =F89*$X$18 -> 0 | Y89: 0 | Z89: maximaal 90% | AA89: 0 | AB89: 0 | AE89: vgi | AF89: =F89*$AF$18 -> 0 | AG89: 0 | AH89: maximaal 90% | AI89: 0 | AJ89: 0 | AM89: vgi | AN89: =F89*$AN$18 -> 0 | AO89: 0 | AP89: maximaal 90% | AQ89: 0 | AR89: 0
C91: 2.5 | D91: =Produktenlijst!G114 -> Inrichtingsplan Openbare ruimte | F91: =SUM(F92:F96) -> 0 | H91: =SUM(H92:H96) -> 0 | K91: =SUM(K92:K96) -> 0 | L91: =SUM(L92:L96) -> 0 | O91: 2.5 | P91: =SUM(P92:P96) -> 0 | S91: =SUM(S92:S96) -> 0 | T91: =SUM(T92:T96) -> 0 | W91: 2.5 | X91: =SUM(X92:X96) -> 0 | AA91: =SUM(AA92:AA96) -> 0 | AB91: =SUM(AB92:AB96) -> 0 | AE91: 2.5 | AF91: =SUM(AF92:AF96) -> 0 | AI91: =SUM(AI92:AI96) -> 0 | AJ91: =SUM(AJ92:AJ96) -> 0 | AM91: 2.5 | AN91: =SUM(AN92:AN96) -> 0 | AQ91: =SUM(AQ92:AQ96) -> 0 | AR91: =SUM(AR92:AR96) -> 0
E92: =Produktenlijst!K115 -> Stedenbouw, civiele techniek | F92: =Produktenlijst!R115+Produktenlijst!R116 -> 0 | H92: =F92*$H$18 -> 0 | I92: 0 | J92: maximaal 90% | K92: =I92*H92 -> 0 | L92: =H92-K92 -> 0 | M92: =IF(I92>90%,"X","") ->  | O92: sted/civ | P92: =F92*$P$18 -> 0 | Q92: 0 | R92: maximaal 90% | S92: =Q92*P92 -> 0 | T92: =P92-S92 -> 0 | U92: =IF(Q92>90%,"X","") ->  | W92: sted/civ | X92: =F92*$X$18 -> 0 | Y92: 0 | Z92: maximaal 90% | AA92: =Y92*X92 -> 0 | AB92: =X92-AA92 -> 0 | AC92: =IF(Y92>90%,"X","") ->  | AE92: sted/civ | AF92: =F92*$AF$18 -> 0 | AG92: 0 | AH92: maximaal 90% | AI92: =AG92*AF92 -> 0 | AJ92: =AF92-AI92 -> 0 | AK92: =IF(AG92>90%,"X","") ->  | AM92: sted/civ | AN92: =F92*$AN$18 -> 0 | AO92: 0 | AP92: maximaal 90% | AQ92: =AO92*AN92 -> 0 | AR92: =AN92-AQ92 -> 0 | AS92: =IF(AO92>90%,"X","") -> 
E93: =Produktenlijst!K117 -> Projectmanagement | F93: =Produktenlijst!R117 -> 0 | H93: =F93*$H$18 -> 0 | I93: 0 | J93: maximaal 90% | K93: =I93*H93 -> 0 | L93: =H93-K93 -> 0 | M93: =IF(I93>90%,"X","") ->  | O93: pm | P93: =F93*$P$18 -> 0 | Q93: 0 | R93: maximaal 90% | S93: 0 | T93: 0 | W93: pm | X93: =F93*$X$18 -> 0 | Y93: 0 | Z93: maximaal 90% | AA93: 0 | AB93: 0 | AE93: pm | AF93: =F93*$AF$18 -> 0 | AG93: 0 | AH93: maximaal 90% | AI93: 0 | AJ93: 0 | AM93: pm | AN93: =F93*$AN$18 -> 0 | AO93: 0 | AP93: maximaal 90% | AQ93: 0 | AR93: 0
E94: =Produktenlijst!K118 -> Planeconomie | F94: =Produktenlijst!R118 -> 0 | H94: =F94*$H$18 -> 0 | I94: 0 | J94: maximaal 90% | K94: 0 | L94: 0 | O94: pe | P94: =F94*$P$18 -> 0 | Q94: 0 | R94: maximaal 90% | S94: 0 | T94: 0 | W94: pe | X94: =F94*$X$18 -> 0 | Y94: 0 | Z94: maximaal 90% | AA94: 0 | AB94: 0 | AE94: pe | AF94: =F94*$AF$18 -> 0 | AG94: 0 | AH94: maximaal 90% | AI94: 0 | AJ94: 0 | AM94: pe | AN94: =F94*$AN$18 -> 0 | AO94: 0 | AP94: maximaal 90% | AQ94: 0 | AR94: 0
E95: =Produktenlijst!K119 -> Communicatie | F95: =Produktenlijst!R119 -> 0 | H95: =F95*$H$18 -> 0 | I95: 0 | J95: maximaal 90% | K95: 0 | L95: 0 | O95: com | P95: =F95*$P$18 -> 0 | Q95: 0 | R95: maximaal 90% | S95: 0 | T95: 0 | W95: com | X95: =F95*$X$18 -> 0 | Y95: 0 | Z95: maximaal 90% | AA95: 0 | AB95: 0 | AE95: com | AF95: =F95*$AF$18 -> 0 | AG95: 0 | AH95: maximaal 90% | AI95: 0 | AJ95: 0 | AM95: com | AN95: =F95*$AN$18 -> 0 | AO95: 0 | AP95: maximaal 90% | AQ95: 0 | AR95: 0
E96: =Produktenlijst!K120 -> Landmeten/vastgoedinformatie | F96: =Produktenlijst!R120 -> 0 | H96: =F96*$H$18 -> 0 | I96: 0 | J96: maximaal 90% | K96: 0 | L96: 0 | O96: vgi | P96: =F96*$P$18 -> 0 | Q96: 0 | R96: maximaal 90% | S96: 0 | T96: 0 | W96: vgi | X96: =F96*$X$18 -> 0 | Y96: 0 | Z96: maximaal 90% | AA96: 0 | AB96: 0 | AE96: vgi | AF96: =F96*$AF$18 -> 0 | AG96: 0 | AH96: maximaal 90% | AI96: 0 | AJ96: 0 | AM96: vgi | AN96: =F96*$AN$18 -> 0 | AO96: 0 | AP96: maximaal 90% | AQ96: 0 | AR96: 0
C98: 2.6 | D98: =Produktenlijst!G122 -> Voorbereiding, toezicht en directievoering bij civiel en cultuurtechnische werken | F98: =SUM(F99:F101) -> 0 | H98: =SUM(H99:H101) -> 0 | K98: =SUM(K99:K101) -> 0 | L98: =SUM(L99:L101) -> 0 | O98: 2.6 | P98: =SUM(P99:P101) -> 0 | S98: =SUM(S99:S101) -> 0 | T98: =SUM(T99:T101) -> 0 | W98: 2.6 | X98: =SUM(X99:X101) -> 0 | AA98: =SUM(AA99:AA101) -> 0 | AB98: =SUM(AB99:AB101) -> 0 | AE98: 2.6 | AF98: =SUM(AF99:AF101) -> 0 | AI98: =SUM(AI99:AI101) -> 0 | AJ98: =SUM(AJ99:AJ101) -> 0 | AM98: 2.6 | AN98: =SUM(AN99:AN101) -> 0 | AQ98: =SUM(AQ99:AQ101) -> 0 | AR98: =SUM(AR99:AR101) -> 0
D99: =Produktenlijst!H123 -> slopen | E99: =Produktenlijst!K123 -> Ingenieursbureau | F99: =Produktenlijst!R123 -> 0 | H99: =F99*$H$18 -> 0 | I99: 0 | J99: maximaal 80% | K99: =I99*H99 -> 0 | L99: =H99-K99 -> 0 | M99: =IF(I99>80%,"X","") ->  | O99: ib | P99: =F99*$P$18 -> 0 | Q99: 0 | R99: maximaal 80% | S99: =Q99*P99 -> 0 | T99: =P99-S99 -> 0 | U99: =IF(Q99>80%,"X","") ->  | W99: ib | X99: =F99*$X$18 -> 0 | Y99: 0 | Z99: maximaal 80% | AA99: =Y99*X99 -> 0 | AB99: =X99-AA99 -> 0 | AC99: =IF(Y99>80%,"X","") ->  | AE99: ib | AF99: =F99*$AF$18 -> 0 | AG99: 0 | AH99: maximaal 80% | AI99: =AG99*AF99 -> 0 | AJ99: =AF99-AI99 -> 0 | AK99: =IF(AG99>80%,"X","") ->  | AM99: ib | AN99: =F99*$AN$18 -> 0 | AO99: 0 | AP99: maximaal 80% | AQ99: =AO99*AN99 -> 0 | AR99: =AN99-AQ99 -> 0 | AS99: =IF(AO99>80%,"X","") -> 
D100: =Produktenlijst!H124 -> ophogen/voorbelasten | E100: =Produktenlijst!K124 -> Ingenieursbureau | F100: =Produktenlijst!R124 -> 0 | H100: =F100*$H$18 -> 0 | I100: 0 | J100: maximaal 80% | K100: =I100*H100 -> 0 | L100: =H100-K100 -> 0 | M100: =IF(I100>80%,"X","") ->  | O100: ib | P100: =F100*$P$18 -> 0 | Q100: 0 | R100: maximaal 80% | S100: 0 | T100: 0 | U100: =IF(Q100>80%,"X","") ->  | W100: ib | X100: =F100*$X$18 -> 0 | Y100: 0 | Z100: maximaal 80% | AA100: 0 | AB100: 0 | AC100: =IF(Y100>80%,"X","") ->  | AE100: ib | AF100: =F100*$AF$18 -> 0 | AG100: 0 | AH100: maximaal 80% | AI100: 0 | AJ100: 0 | AK100: =IF(AG100>80%,"X","") ->  | AM100: ib | AN100: =F100*$AN$18 -> 0 | AO100: 0 | AP100: maximaal 80% | AQ100: 0 | AR100: 0 | AS100: =IF(AO100>80%,"X","") -> 
D101: =Produktenlijst!H125 -> bouw en woonrijpmaken | E101: =Produktenlijst!K125 -> Ingenieursbureau | F101: =Produktenlijst!R125 -> 0 | H101: =F101*$H$18 -> 0 | I101: 0 | J101: maximaal 80% | K101: 0 | L101: 0 | O101: ib | P101: =F101*$P$18 -> 0 | Q101: 0 | R101: maximaal 80% | S101: 0 | T101: 0 | W101: ib | X101: =F101*$X$18 -> 0 | Y101: 0 | Z101: maximaal 80% | AA101: 0 | AB101: 0 | AE101: ib | AF101: =F101*$AF$18 -> 0 | AG101: 0 | AH101: maximaal 80% | AI101: 0 | AJ101: 0 | AM101: ib | AN101: =F101*$AN$18 -> 0 | AO101: 0 | AP101: maximaal 80% | AQ101: 0 | AR101: 0
C103: 2.7 | D103: =Produktenlijst!G128 -> Algemene en financiele verantwoording en aansturing van het project | F103: =SUM(F104:F106) -> 0 | H103: =SUM(H104:H106) -> 0 | K103: =SUM(K104:K106) -> 0 | L103: =SUM(L104:L106) -> 0 | O103: 2.7 | P103: =SUM(P104:P106) -> 0 | S103: =SUM(S104:S106) -> 0 | T103: =SUM(T104:T106) -> 0 | W103: 2.7 | X103: =SUM(X104:X106) -> 0 | AA103: =SUM(AA104:AA106) -> 0 | AB103: =SUM(AB104:AB106) -> 0 | AE103: 2.7 | AF103: =SUM(AF104:AF106) -> 0 | AI103: =SUM(AI104:AI106) -> 0 | AJ103: =SUM(AJ104:AJ106) -> 0 | AM103: 2.7 | AN103: =SUM(AN104:AN106) -> 0 | AQ103: =SUM(AQ104:AQ106) -> 0 | AR103: =SUM(AR104:AR106) -> 0
E104: =Produktenlijst!K129 -> Projectmanagement | F104: =Produktenlijst!R129 -> 0 | H104: =F104*$H$18 -> 0 | I104: 0 | J104: maximaal 90% | K104: =I104*H104 -> 0 | L104: =H104-K104 -> 0 | M104: =IF(I104>90%,"X","") ->  | O104: pm | P104: =F104*$P$18 -> 0 | Q104: 0 | R104: maximaal 90% | S104: =Q104*P104 -> 0 | T104: =P104-S104 -> 0 | U104: =IF(Q104>90%,"X","") ->  | W104: pm | X104: =F104*$X$18 -> 0 | Y104: 0 | Z104: maximaal 90% | AA104: =Y104*X104 -> 0 | AB104: =X104-AA104 -> 0 | AC104: =IF(Y104>90%,"X","") ->  | AE104: pm | AF104: =F104*$AF$18 -> 0 | AG104: 0 | AH104: maximaal 90% | AI104: =AG104*AF104 -> 0 | AJ104: =AF104-AI104 -> 0 | AK104: =IF(AG104>90%,"X","") ->  | AM104: pm | AN104: =F104*$AN$18 -> 0 | AO104: 0 | AP104: maximaal 90% | AQ104: =AO104*AN104 -> 0 | AR104: =AN104-AQ104 -> 0 | AS104: =IF(AO104>90%,"X","") -> 
E105: =Produktenlijst!K130 -> Projectassistentie | F105: =Produktenlijst!R130 -> 0 | H105: =F105*$H$18 -> 0 | I105: 0 | J105: maximaal 90% | K105: =I105*H105 -> 0 | L105: =H105-K105 -> 0 | M105: =IF(I105>90%,"X","") ->  | O105: pa | P105: =F105*$P$18 -> 0 | Q105: 0 | R105: maximaal 90% | S105: 0 | T105: 0 | W105: pa | X105: =F105*$X$18 -> 0 | Y105: 0 | Z105: maximaal 90% | AA105: 0 | AB105: 0 | AE105: pa | AF105: =F105*$AF$18 -> 0 | AG105: 0 | AH105: maximaal 90% | AI105: 0 | AJ105: 0 | AM105: pa | AN105: =F105*$AN$18 -> 0 | AO105: 0 | AP105: maximaal 90% | AQ105: 0 | AR105: 0
E106: =Produktenlijst!K131 -> Planeconomie | F106: =Produktenlijst!R131 -> 0 | H106: =F106*$H$18 -> 0 | I106: 0 | J106: maximaal 90% | K106: 0 | L106: 0 | O106: pe | P106: =F106*$P$18 -> 0 | Q106: 0 | R106: maximaal 90% | S106: 0 | T106: 0 | W106: pe | X106: =F106*$X$18 -> 0 | Y106: 0 | Z106: maximaal 90% | AA106: 0 | AB106: 0 | AE106: pe | AF106: =F106*$AF$18 -> 0 | AG106: 0 | AH106: maximaal 90% | AI106: 0 | AJ106: 0 | AM106: pe | AN106: =F106*$AN$18 -> 0 | AO106: 0 | AP106: maximaal 90% | AQ106: 0 | AR106: 0
D109: TOTAAL PLANKOSTEN | F109: =F103+F91+F98+F85+F78+F72+F65+F59+F53+F45+F21+F41+F33+F29+F70 -> 0 | H109: =H103+H91+H98+H85+H78+H72+H65+H59+H53+H45+H21+H41+H33+H29+H70 -> 0 | K109: =K103+K91+K98+K85+K78+K72+K65+K59+K53+K45+K21+K41+K33+K29+K70 -> 0 | L109: =L103+L91+L98+L85+L78+L72+L65+L59+L53+L45+L21+L41+L33+L29+L70 -> 0 | P109: =P103+P91+P98+P85+P78+P72+P65+P59+P53+P45+P21+P41+P33+P29+P70 -> 0 | S109: =S103+S91+S98+S85+S78+S72+S65+S59+S53+S45+S21+S41+S33+S29+S70 -> 0 | T109: =T103+T91+T98+T85+T78+T72+T65+T59+T53+T45+T21+T41+T33+T29+T70 -> 0 | X109: =X103+X91+X98+X85+X78+X72+X65+X59+X53+X45+X21+X41+X33+X29+X70 -> 0 | AA109: =AA103+AA91+AA98+AA85+AA78+AA72+AA65+AA59+AA53+AA45+AA21+AA41+AA33+AA29+AA70 -> 0 | AB109: =AB103+AB91+AB98+AB85+AB78+AB72+AB65+AB59+AB53+AB45+AB21+AB41+AB33+AB29+AB70 -> 0 | AF109: =AF103+AF91+AF98+AF85+AF78+AF72+AF65+AF59+AF53+AF45+AF21+AF41+AF33+AF29+AF70 -> 0 | AI109: =AI103+AI91+AI98+AI85+AI78+AI72+AI65+AI59+AI53+AI45+AI21+AI41+AI33+AI29+AI70 -> 0 | AJ109: =AJ103+AJ91+AJ98+AJ85+AJ78+AJ72+AJ65+AJ59+AJ53+AJ45+AJ21+AJ41+AJ33+AJ29+AJ70 -> 0 | AN109: =AN103+AN91+AN98+AN85+AN78+AN72+AN65+AN59+AN53+AN45+AN21+AN41+AN33+AN29+AN70 -> 0 | AQ109: =AQ103+AQ91+AQ98+AQ85+AQ78+AQ72+AQ65+AQ59+AQ53+AQ45+AQ21+AQ41+AQ33+AQ29+AQ70 -> 0 | AR109: =AR103+AR91+AR98+AR85+AR78+AR72+AR65+AR59+AR53+AR45+AR21+AR41+AR33+AR29+AR70 -> 0

Sheet Hulpblad
C1: =+Vragenlijst!C7 -> Plankostenregels bij kostenverhaal MET tijdvak
C3: HULPBLAD
B5: Plankosten SLOPEN
B7: Op te halen variabelen uit vragen- en produktenlijst
C8: Is sprake van slopen? | F8: =IF(+Vragenlijst!Q99=TRUE,"ja","nee") -> nee | G8: =+IF(F8="nee",0,1) -> 0
C9: Aantal m3 | F9: =+Vragenlijst!H101 -> 0 | G9: m3
C10: Verrekenfactor | F10: =1+Vragenlijst!X104 -> 1 | G10: gemiddeld type te slopen onroerende zaak
C11: Aantal bestekken sloop | F11: =+Vragenlijst!H109 -> 0 | G11: antwoord op vraag in vragenlijst
C12: Verrekenfactor | F12: =1+Vragenlijst!X114 -> 1 | G12: wijze van aanbesteding
C13: Verrekenfactor | F13: =IF(Vragenlijst!Q111=TRUE,"ja","nee") -> nee | G13: =1+Vragenlijst!H112/100 -> 1 | H13: aanwezigheid asbest
C15: Tarief CT projectleider | F15: =+Produktenlijst!S9 -> 151 | G15: per uur
C16: Tarief bestekschrijver/calculator | F16: =+Produktenlijst!V7 -> 119 | G16: per uur
C17: Tarief directievoerder | F17: =+Produktenlijst!V10 -> 132 | G17: per uur
C18: Tarief toezichthouder | F18: =+Produktenlijst!V11 -> 107 | G18: per uur
B20: Uitgangspunten slopen
B22: Voorbereiding, aanbesteding en gunning
C23: Bestekschrijver/calculator | F23: 12 | G23: uur per bestek
C24: Verrekenfactor | F24: =+F12 -> 1 | G24: wijze van aanbesteding
B26: Directievoering en toezicht
C27: Uitvoeringstijd | F27: 8 | G27: uur per 300 m3 (1 woning)
C28: Totaal uitvoeringstijd | F28: =+F9/300*F27 -> 0 | G28: uur
C29: Verrekenfactor | F29: =+F10 -> 1 | G29: type te slopen onroerende zaak
C30: Verrekenfactor | F30: =+F12 -> 1 | G30: wijze van aanbesteding
C31: Verrekenfactor | F31: =+G13 -> 1 | G31: aanwezigheid asbest
C32: Directievoering | F32: =1 -> 1 | G32: uur per week gedurende uitvoeringstijd
C33: Ttoezichthouden | F33: =4*1 -> 4 | G33: uur per week gedurende uitvoeringstijd
B35: Projectleiding
C36: Begeleiding aanbesteding | F36: 4 | G36: uur per bestek
C37: Verrekenfactor | F37: =+F12 -> 1 | G37: wijze van aanbesteding
C38: Werkzaamheden tijdens uitvoering | F38: =0.25*1 -> 0.25 | G38: uur per week gedurende uitvoeringstijd
C39: Verrekenfactor | F39: =+F10 -> 1 | G39: type te slopen onroerende zaak
C40: Verrekenfactor | F40: =+G13 -> 1 | G40: aanwezigheid asbest
B42: Plankosten | G42: euro's | I42: uren
C44: Aanbesteding en gunning | G44: =(+F23*F11*F24*F16)*G8 -> 0 | I44: =(+F23*F11*F24)*G8 -> 0
C45: Directievoering en toezicht | G45: =(+(((F28)/40*(F29)*(F30)*F31*F32*F17)+((F28)/40*(F29)*(F30)*F31*F33*F18))*G8) -> 0 | I45: =(+(((F28)/40*(F29)*(F30)*F31*F32)+((F28)/40*(F29)*(F30)*F31*F33))*G8) -> 0
C46: Projectleiding | G46: =(+(F36*F11*F15*(F37)+F38*(F28)/40*F15*F39)*F40)*G8 -> 0 | I46: =(+(F36*F11*(F37)+F38*(F28)/40*F39)*F40)*G8 -> 0
B48: Totaal plankosten SLOPEN | G48: =SUM(G44:G46)*G8 -> 0 | I48: =SUM(I44:I46)*G8 -> 0
B52: Plankosten BOUW EN WOONRIJPMAKEN
B54: Op te halen variabelen uit vragen- en produktenlijst
C55: Is sprake van bouw-en woonrijpmaken? | F55: =IF(+Vragenlijst!Q135=TRUE,"ja","nee") -> nee | G55: =+IF(F55="nee",0,1) -> 0
C56: Kostenverhaalsgebied | F56: =+Vragenlijst!H23/10000 -> 0 | G56: ha
C57: Aantal deelgebieden volgens de norm | F57: =+(F56/2.5) -> 0 | G57: (2,5 ha per deelgebied) | M57: verhouding openbaar/uitgeefbaar tov norm | N57: =+Vragenlijst!Q49 -> 1
C58: Aantal deelgebieden cf verhouding grondgebruik | F58: =+F57*N69 -> 0 | M58: hulptabel te berekenen aantal deelgebieden
C59: Type locatie | F59: =CONCATENATE(Vragenlijst!Q29,Vragenlijst!R29,Vragenlijst!S29,Vragenlijst!T29,Vragenlijst!U29) ->  | M59: % t.o.v. norm | N59: verrekeningsfactor
C60: Aantal bestekken dat bij type locatie hoort | F60: =IF(F59="uitleg",2*F58,IF(F59="uitbreiding",2*F58,1.5*F58)) -> 0 | M60: 1 | N60: 1
C61: Verrekenfactor | F61: =1+Vragenlijst!Y138 -> 1 | G61: wijze van aanbesteden | M61: 1.12 | N61: 1.05
C62: Bodemsanering ? | F62: =+IF(Vragenlijst!Q147=TRUE,"ja","nee") -> nee | G62: =+Vragenlijst!S148/100 -> 0 | H62: van het exploitatiegebied | M62: 1.25 | N62: 1.1
M63: 1.38 | N63: 1.15
C64: Tarief CT projectleider | F64: =+Produktenlijst!S9 -> 151 | G64: per uur | M64: 1.5 | N64: 1.2
C65: Tarief CT ontwerper | F65: =+Produktenlijst!V8 -> 151 | G65: per uur | M65: 1.5 | N65: 1.2
C66: Tarief bestekschrijver/calculator | F66: =+Produktenlijst!V7 -> 119 | G66: per uur
C67: Tarief CT tekenaar | F67: =+Produktenlijst!V9 -> 107 | G67: per uur
C68: Tarief directievoerder | F68: =+Produktenlijst!V10 -> 132 | G68: per uur
C69: Ttarief toezichthouder | F69: =+Produktenlijst!V11 -> 107 | G69: per uur | M69: te hanteren verreken % t.o.v. norm deelgebieden: | N69: =IF(N57<$M$60,$N$60,IF(N57<$M$61,$N60+((N57-$M$60)/($M$61-$M$60))*($N$61-$N$60), IF(N57<$M$62,$N$61+((N57-$M$61)/($M$62-$M$61))*($N$62-$N$61), IF(N57<$M$63,$N$62+((N57-$M$62)/($M$63-$M$62))*($N$63-$N$62), IF(N57<$M$64,$N$63+((N57-$M$63)/($M$64-$M$63))*($N$64-$N$63), IF(N57<$M$65,$N$64+((N57-$M$64)/($M$65-$M$64))*($N$65-$N$64),$N$65)))))) -> 1
B71: Uitgangspunten BOUW EN WOONRIJPMAKEN
B73: Ontwerp VO en DO:
C74: Aantal deelgebieden | F74: =+F57 -> 0 | G74: deelgebieden
C75: Uren CT ontwerper | F75: 160 | G75: per ontwerp VO en DO per deelgebied
C76: Rioleringsplan | F76: 7.5 | G76: uur per ha
B78: Aanbesteding en gunning
C79: Aantal bestekken | F79: =+F60 -> 0 | G79: brm en wrm
C80: Verrekenfactor | F80: =+F61 -> 1 | G80: wijze van aanbesteding
C81: Bestekschrijver/calculator | F81: 40 | G81: uur per bestek
C82: CT tekenaar | F82: 24 | G82: uur per bestek
B84: Directievoering en toezicht
C85: Uitvoeringstijd BWRM | F85: 12 | G85: maanden
C86: Extra uitvoeringstijd BRM ivm bodemsanering | F86: =+IF(F62="ja",2*G62,0) -> 0 | G86: maanden
C87: Totaal uitvoeringstijd bestekken | F87: =+(F85+F86)*F60/2 -> 0 | G87: maanden
C88: Verrekenfactor | F88: =+F61 -> 1 | G88: wijze van aanbesteding
C89: Directievoering | F89: 5 | G89: uur per week gedurende uitvoeringstijd
C90: Toezichthouden | F90: 10 | G90: uur per week gedurende uitvoeringstijd
B92: Projectleiding
C93: Begeleiding ontwerp | F93: 24 | G93: uur per ontwerp VO en DO
C94: Begeleiding aanbesteding | F94: 16 | G94: uur per bestek
C95: Verrekenfactor | F95: =+F61 -> 1 | G95: wijze van aanbesteding
C96: Werkzaamheden tijdens uitvoering | F96: 1 | G96: uur per week gedurende uitvoeringstijd
B98: Plankosten | G98: euro's | I98: uren
C99: Ontwerpen | G99: =(+F74*F75*F65+F76*F56*F65)*G55 -> 0 | I99: =(+F74*F75+F76*F56)*G55 -> 0
C100: Aanbesteding en gunning | G100: =(+F79*F81*F66*(F80)+F79*F82*F67*(F80))*G55 -> 0 | I100: =(+F79*F81*(F80)+F79*F82*(F80))*G55 -> 0
C101: Directievoering en toezicht | G101: =(+F87*4*F89*F68*F88+F87*4*F90*F69*F88)*G55 -> 0 | I101: =(+F87*4*F89+F87*4*F90*F88)*G55 -> 0
C102: Projectleiding | G102: =(+F93*F58*F64+F94*F60*F64*(F95)+F96*F87*4*F64)*G55 -> 0 | I102: =(+F93*F58+F94*F60*(F95)+F96*F87*4)*G55 -> 0
B104: Totaal plankosten BOUW EN WOONRIJPMAKEN | G104: =SUM(G99:G102)*G55 -> 0 | I104: =SUM(I99:I102)*G55 -> 0
B111: PLANKOSTEN OPHOGEN/VOORBELASTEN
B113: Op te halen variabelen uit plankostenscan
C114: Is sprake van ophogen/voorbelasten? | F114: =IF(+Vragenlijst!Q124=TRUE,"ja","nee") -> nee | G114: =+IF(F114="nee",0,1) -> 0
C115: Omvang plangebied | F115: =+Vragenlijst!H23/10000 -> 0 | G115: ha
C116: Integraal of partieel | F116: =IF(Vragenlijst!Q125=TRUE,"integraal","partieel") -> partieel
C117: Hoogte ophogen | F117: =+Vragenlijst!H130 -> 0 | G117: m1
C118: Aantal fases/deelplannen | F118: =+Vragenlijst!H128 -> 0 | G118: stuks
C119: Zettingstijd | F119: =+Vragenlijst!H129 -> 0 | G119: jaar
C120: Tarief directievoerder | F120: =+Produktenlijst!V10 -> 132 | G120: per uur
C121: Tarief toezichthouder | F121: =+Produktenlijst!V11 -> 107 | G121: per uur
B123: Basiskosten ophogen
B124: uitgangspunt: 10 ha en 1 m1 ophogen
C125: Bestek | F125: 12844 | G125: is afhankelijk van grootte werk, naarmate werk groter wordt nemen kosten niet lineair toe, basisprijs wel afhankelijk van integraal of partieel
G126: en aantal fases
C127: Rapportage | F127: 6422 | G127: is afhankelijk van grootte werk, naarmate werk groter wordt nemen kosten niet lineair toe (zie tabel bij bestek)
G129: hulptabel curve grootte werk | L129: hulptabel bestek | O129: hulptabel rapportage
G130: min oppervlak | I130: max oppervlak | K130: percentage | L130: minimaal | M130: maximaal | N130: per ha | O130: minimaal | P130: maximaal | Q130: per ha
G131: 0 | H131: ha | I131: 10 | J131: ha | K131: 1 | L131: =basisbedrag_bestek*(1+F149) -> 19266 | M131: =L131 -> 19266 | N131: =CEILING(M131/I131,25) -> 1950 | O131: =basisbedrag_rapportage -> 6422 | P131: =basisbedrag_rapportage -> 6422 | Q131: =CEILING(P131/I131,25) -> 650
G132: =I131 -> 10 | H132: =H131 -> ha | I132: 15 | J132: =J131 -> ha | K132: 0.9 | L132: =M131 -> 19266 | M132: =I132*K132*$N$131 -> 26325 | N132: =CEILING(M132/I132,25) -> 1775 | O132: =P131 -> 6422 | P132: =I132*K132*$Q$131 -> 8775 | Q132: =CEILING(P132/I132,25) -> 600
G133: =I132 -> 15 | H133: =H132 -> ha | I133: 50 | J133: =J132 -> ha | K133: 0.75 | L133: =M132 -> 26325 | M133: =I133*K133*$N$131 -> 73125 | N133: 1475 | O133: =P132 -> 8775 | P133: =I133*K133*$Q$131 -> 24375 | Q133: 500
G134: =I133 -> 50 | H134: =H133 -> ha | I134: 100 | J134: ha | K134: 0.5 | L134: =M133 -> 73125 | M134: =I134*K134*$N$131 -> 97500 | N134: 975 | O134: =P133 -> 24375 | P134: =I134*K134*$Q$131 -> 32500 | Q134: 325
C136: Veldonderzoeken | F136: 2569 | G136: per ha
C137: Monitoring | F137: 1606 | G137: per ha per jaar zettingstijd
C138: Inmeting | F138: 642 | G138: per ha
C139: Directievoering | F139: =(10*10000*$F$117)/$F$145/5*($F$120*4) -> 0 | G139: 1/2 dag per week, gedurende aanbrengtijd, is dus afhankelijk van hoogte en groote werk
C140: Toezichthouder | F140: =(10*10000*$F$117)/$F$145/5*($F$121*4) -> 0 | G140: 1/2 dag per week, gedurende aanbrengtijd, is dus afhankelijk van hoogte en groote werk
B141: Totaal basiskosten ophogen | F141: =SUM(F125:F140) -> 24083 | G141: plangebied 10 ha en 1 m1 integraal ophogen
B143: Rekenkundige uitgangspunten
C144: Grootte van een fase | F144: =IF(aantal_fases=0,0,plangebied/aantal_fases) -> 0 | G144: ha
C145: Levering per as | F145: 1000 | G145: m3 per dag
C146: Uren per week directievoering | F146: 4
C147: Uren per week toezichthouden | F147: 4
C148: Indien partieel grootte plangebied | F148: 0.35
C149: Opslag partieel | F149: =IF(F116="Integraal",0,50%) -> 0.5 | G149: als partiële ophoging dan opslag 50% voor bestek
B150: Plankosten ophogen
C151: Bestek | G151: =IF(grootte_fase<=$I$131,$M$131,IF(AND(grootte_fase>$G$132,grootte_fase<=$I$132),IF($N$132*grootte_fase<$L$132,$L$132,$N$132*grootte_fase),IF(AND(grootte_fase>$G$133,grootte_fase<=$I$133),IF($N$133*grootte_fase<$L$133,$L$133,$N$133*grootte_fase),IF(grootte_fase>G134,IF(IF($N$134*grootte_fase<$L$134,$L$134,$N$134*grootte_fase)>$M$134,$M$134,IF($N$134*grootte_fase<$L$134,$L$134,$N$134*grootte_fase)),0))))*aantal_fases -> 0
C152: Rapportage | G152: =IF(grootte_fase<=$I$131,$P$131,IF(AND(grootte_fase>$G$132,grootte_fase<=$I$132),IF($Q$132*grootte_fase<$O$132,$O$132,$Q$132*grootte_fase),IF(AND(grootte_fase>$G$133,grootte_fase<=$I$133),IF($Q$133*grootte_fase<$O$133,$O$133,$Q$133*grootte_fase),IF(grootte_fase>G134,IF(IF($Q$134*grootte_fase<$O$134,$O$134,$Q$134*grootte_fase)>$P$134,$P$134,IF($Q$134*grootte_fase<$O$134,$O$134,$Q$134*grootte_fase)),0))))*aantal_fases -> 0
C153: Veldonderzoeken | G153: =IF(basisbedrag_veldonderzoeken*plangebied*IF(F116="partieel",F148,1)<5137,5137,basisbedrag_veldonderzoeken*plangebied*IF(F116="partieel",F148,1)) -> 5137
C154: Monitoring | G154: =IF(+basisbedrag_monitoring*zettingstijd*plangebied*IF(F116="partieel",F148,1)<3211,3211,plangebied*zettingstijd*basisbedrag_monitoring*IF(F116="partieel",F148,1)) -> 3211
C155: Inmeting | G155: =IF(+basisbedrag_inmeting*plangebied*IF(F116="partieel",F148,1)<1285,1285,basisbedrag_inmeting*plangebied*IF(F116="partieel",F148,1)) -> 1285
C156: Directievoering | G156: =(((+plangebied*IF(F116="partieel",F148,1)*ophooghoogte*10000/levering_per_as_per_dag)/5)*tarief_civiel*uren_per_week_directievoering) -> 0
C157: Toezichthouder | G157: =((plangebied*IF(F116="partieel",F148,1)*ophooghoogte*10000/levering_per_as_per_dag/5)*F121*uren_per_week_toezichthouden) -> 0
B158: Totaal plankosten ophogen | G158: =SUM(G151:G157)*G114 -> 0
B162: Hulptabel kosten projectbesluit en omgevingsvergunning | I162: Hulptabel kosten Omgevingsplan
B164: =+Vragenlijst!Q23 -> 0 | C164: ha kostenverhaalsgebied | F164: =+IF(Vragenlijst!Q66=TRUE,Vragenlijst!H67,1) -> 1 | G164: onderdeel van groter omgevingsplan | I164: =+Vragenlijst!Q23 -> 0 | J164: ha kostenverhaalsgebied | M164: =+IF(Vragenlijst!Q66=TRUE,Vragenlijst!H67,1) -> 1 | N164: onderdeel van groter omgevingsplan
B165: =IF(B164<0.5,B167,(IF(B164<1,B168,IF(B164<3,B169,(IF(B164<5,B170,(IF(B164<10,B171,IF(B164<15,B172,IF(B164<20,B173,IF(B164<=50,B174,B175)))))))))))*F164 -> 60 | C165: uur projectbesluit of omgevingsvergunning voor een buitenplanse omgevingsactiviteit | I165: =IF(I164<0.5,I167,(IF(I164<1,I168,IF(I164<3,I169,(IF(I164<5,I170,(IF(I164<10,I171,IF(I164<15,I172,IF(I164<20,I173,IF(I164<=50,I174,I175)))))))))))*M164 -> 100 | J165: uur voor gedetailleerd omgevingsplan
B167: 60 | C167: uur voor kostenverhaalgebied < 0,5 ha | I167: 100 | J167: uur voor kostenverhaalgebied < 0,5 ha
B168: 120 | C168: uur voor kostenverhaalgebied tussen 0,5 ha en 1 ha | I168: 200 | J168: uur voor kostenverhaalgebied tussen 0,5 ha en 1 ha
B169: 200 | C169: uur voor kostenverhaalgebied tussen 1 ha en 3 ha | I169: 300 | J169: uur voor kostenverhaalgebied tussen 1 ha en 3 ha
B170: 300 | C170: uur voor kostenverhaalgebied tussen 3 ha en 5 ha | I170: 400 | J170: uur voor kostenverhaalgebied tussen 3 ha en 5 ha
B171: 350 | C171: uur voor kostenverhaalgebied tussen 5 ha en 10 ha | I171: 450 | J171: uur voor kostenverhaalgebied tussen 5 ha en 10 ha
B172: 400 | C172: uur voor kostenverhaalgebied tussen 10 ha en 15 ha | I172: 500 | J172: uur voor kostenverhaalgebied tussen 10 ha en 15 ha
B173: 450 | C173: uur voor kostenverhaalgebied tussen 15 ha en 20 ha | I173: 550 | J173: uur voor kostenverhaalgebied tussen 15 ha en 20 ha
B174: 500 | C174: uur voor kostenverhaalgebied tussen 20 ha en 50 ha | I174: 600 | J174: uur voor kostenverhaalgebied tussen 20 ha en 50 ha
B175: 550 | C175: uur voor kostenverhaalgebied groter dan 50 ha | I175: 700 | J175: uur voor kostenverhaalgebied groter dan 50 ha
B181: hulptabel opstellen regels kostenverhaal | H181: hulptabel opstellen regles kostenverhaal
B182: bij een omgevingsplan | E182: =+M164 -> 1 | F182: onderdeel van groter omgevingsplan | K182: =+F164 -> 1 | L182: onderdeel van groter omgevingsplan
H183: projectbesluit of omgevingsvergunning voor een buitenplanse omgevingsactiviteit
B184: =+Vragenlijst!Q23 -> 0 | C184: ha kostenverhaalsgebied | H184: =+Vragenlijst!Q23 -> 0 | I184: ha kostenverhaalsgebied
B185: =IF(B184<0.5,B187,(IF(B184<1,B188,IF(B184<3,B189,(IF(B184<5,B190,(IF(B184<10,B191,IF(B184<15,B192,IF(B184<20,B193,IF(B184<=50,B194,B195)))))))))))*E182 -> 38 | C185: uur voor opstellen kostenverhaalsregels | H185: =IF(H184<0.5,H187,(IF(H184<1,H188,IF(H184<3,H189,(IF(H184<5,H190,(IF(H184<10,H191,IF(H184<15,H192,IF(H184<20,H193,IF(H184<=50,H194,H195)))))))))))*K182 -> 25 | I185: uur voor opstellen kostenverhaalsregels
B187: 38 | C187: uur voor kostenverhaalgebied < 0,5 ha | H187: =25 -> 25 | I187: uur voor kostenverhaalgebied < 0,5 ha
B188: 75 | C188: uur voor kostenverhaalgebied tussen 0,5 ha en 1 ha | H188: =50 -> 50 | I188: uur voor kostenverhaalgebied tussen 0,5 ha en 1 ha
B189: 113 | C189: uur voor kostenverhaalgebied tussen 1 ha en 3 ha | H189: =75 -> 75 | I189: uur voor kostenverhaalgebied tussen 1 ha en 3 ha
B190: 150 | C190: uur voor kostenverhaalgebied tussen 3 ha en 5 ha | H190: =100 -> 100 | I190: uur voor kostenverhaalgebied tussen 3 ha en 5 ha
B191: 173 | C191: uur voor kostenverhaalgebied tussen 5 ha en 10 ha | H191: =115 -> 115 | I191: uur voor kostenverhaalgebied tussen 5 ha en 10 ha
B192: 188 | C192: uur voor kostenverhaalgebied tussen 10 ha en 15 ha | H192: =125 -> 125 | I192: uur voor kostenverhaalgebied tussen 10 ha en 15 ha
B193: 300 | C193: uur voor kostenverhaalgebied tussen 15 ha en 20 ha | H193: =200 -> 200 | I193: uur voor kostenverhaalgebied tussen 15 ha en 20 ha
B194: 375 | C194: uur voor kostenverhaalgebied tussen 20 ha en 50 ha | H194: =250 -> 250 | I194: uur voor kostenverhaalgebied tussen 20 ha en 50 ha
B195: 450 | C195: uur voor kostenverhaalgebied groter dan 50 ha | H195: =300 -> 300 | I195: uur voor kostenverhaalgebied groter dan 50 ha
